{"text_format":"3","workbook":"xlsx","n_sheets":3,"sheets":["Veikartdata","Agile-veikart","Om"],"not_rendered":{"defined_names":5},"read":"whole","date_system":"1900"}

{"sheet":"Veikartdata","index":0,"n_rows":13,"n_cols":7,"rows_kept":13,"merged":[[12,1,12,4]]}
["Opprett et Agile-veikart ved å oppgi viktige milepæler eller aktiviteter i Veikartdata-tabellen i dette regnearket.\nTittelen på dette regnearket finnes i celle B1. \nInformasjon om hvordan du bruker dette regnearket, inkludert instruksjoner for skjermlesere, finner du i Om-regnearket.\nFortsett å naviger ned i kolonne A for nærmere instruksjoner.","Agile-tidslinjedata"]
["Tabelloverskrifter finnes i cellene B2 til E2. Bruk overskriftsfiltre for å sortere tabellen og finne bestemte elementer.\nAgile-veikartet fungerer best når denne tabellen er sortert i Stigende rekkefølge etter Prioritet, etterfulgt av Milepæl eller Aktivitet.\nEksempeldata finnes i Veikartdata-tabellen fra cellene B3 til E12. \nNår en milepæl eller aktivitet er fullført, oppdaterer du det tilsvarende Resultat-feltet for å vise resultatene i regnearket Agile-veikart. Angi Ingen endring for å utheve milepæler uten innvirkning.\nFortsett til celle A13 for neste instruksjon.\n","Mål","Milepæl eller Aktivitet","Prioritet","Resultat",null,"<-- sorter tabellen etter Prioritet og Milepæl eller Aktivitet, i stigende rekkefølge"]
[null,"Gjeldende","Aktivitet 1\nByggprototype","1 – Høy",null,null,"<-- legg til et resultat for hver fullførte milepæl. Angi Ingen endring for å utheve milepæler uten innvirkning."]
[null,"Nær fremtid","Aktivitet 2\nDemoprototype","1 – Høy"]
[null,"Gjeldende","Aktivitet 6","1 – Høy"]
[null,"Fremtid","Aktivitet 7\nSette ut utviklingen av implementeringen av trinn 1","1 – Høy"]
[null,"Fullført","Aktivitet 9\nTrinn 1 godkjent","1 – Høy","Redusere med 10 %"]
[null,"Fremtid","Aktivitet 10","2 – Middels"]
[null,"Nær fremtid","Aktivitet 8","2 – Middels"]
[null,"Fullført","Aktivitet 3","3 – Lav","Ingen endring"]
[null,"Fremtid","Aktivitet 4","3 – Lav"]
[null,"Gjeldende","Aktivitet 5","3 – Lav"]
["Legg til nye elementer ved å sette inn nye rader i tabellen ovenfor denne linjen.\nDette er den siste instruksjonen i dette regnearket.","Legg til nye elementer ved å sette inn nye rader ovenfor denne linjen"]

{"sheet":"Agile-veikart","index":1,"n_rows":100,"n_cols":8,"rows_kept":100}
["Du finner et Agile-veikart som viser milepæler og aktiviteter fra Veikartdata-regnearket i dette regnearket. \nTittelen er i celle B1. \nResultatene som har uttrykket Ingen endring utheves lys oransje, rgb(255, 230, 210).\nFullførte milepæler eller aktiviteter utheves i lysegrønn, rgb(237,251,219).","Agile-veikart"]
["Diagramoverskrifter finner du i cellene B2, D2, F2 og H2. De inneholder: Fullført, Gjeldende, Nær fremtid og Fremtid. Endre disse overskriftene for å endre Mål-utvalgsverdiene i Veikartdata-tabellen i Veikartdata-regnearket.\nCellene B3 til H20 inneholder milepæler og aktiviteter for overskriftene i denne raden. \nMilepæler og aktiviteter opprettes i Veikartdata-regnearket.\nDu må IKKE endre eller slette oppføringer i dette regnearket. Opppdater Veikartdata-tabellen i Veikartdata-regnearket for å oppdatere innholdet i dette regnearket.\nDette er den siste instruksjonen i dette regnearket.","Fullført",null,"Gjeldende",null,"Nær fremtid",null,"Fremtid"]
[null,{"$f":"IFERROR(INDEX(Aktivitet,SMALL(IF(Mål=$B$2,ROW(Aktivitet)-MIN(ROW(Aktivitet))+1),ROWS($B$3:B3)))&\" \"&CHAR(10)&(INDEX(Resultat,SMALL(IF(Mål=$B$2,ROW(Resultat)-MIN(ROW(Resultat))+1),ROWS($B$3:B3))))&CHAR(10),\"\")","v":"Aktivitet 9\nTrinn 1 godkjent \nRedusere med 10 %\n"},null,{"$f":"IFERROR(INDEX(Aktivitet,SMALL(IF(Mål=$D$2,ROW(Aktivitet)-MIN(ROW(Aktivitet))+1),ROWS($B$3:B3)))&CHAR(10),\"\")","v":"Aktivitet 1\nByggprototype\n"},null,{"$f":"IFERROR(INDEX(Aktivitet,SMALL(IF(Mål=$F$2,ROW(Aktivitet)-MIN(ROW(Aktivitet))+1),ROWS($B$3:B3)))&CHAR(10),\"\")","v":"Aktivitet 2\nDemoprototype\n"},null,{"$f":"IFERROR(INDEX(Aktivitet,SMALL(IF(Mål=$H$2,ROW(Aktivitet)-MIN(ROW(Aktivitet))+1),ROWS($B$3:B3)))&CHAR(10),\"\")","v":"Aktivitet 7\nSette ut utviklingen av implementeringen av trinn 1\n"}]
[null,{"$f":"IFERROR(INDEX(Aktivitet,SMALL(IF(Mål=$B$2,ROW(Aktivitet)-MIN(ROW(Aktivitet))+1),ROWS($B$3:B4)))&\" \"&CHAR(10)&(INDEX(Resultat,SMALL(IF(Mål=$B$2,ROW(Resultat)-MIN(ROW(Resultat))+1),ROWS($B$3:B4))))&CHAR(10),\"\")","v":"Aktivitet 3 \nIngen endring\n"},null,{"$f":"IFERROR(INDEX(Aktivitet,SMALL(IF(Mål=$D$2,ROW(Aktivitet)-MIN(ROW(Aktivitet))+1),ROWS($B$3:B4)))&CHAR(10),\"\")","v":"Aktivitet 6\n"},null,{"$f":"IFERROR(INDEX(Aktivitet,SMALL(IF(Mål=$F$2,ROW(Aktivitet)-MIN(ROW(Aktivitet))+1),ROWS($B$3:B4)))&CHAR(10),\"\")","v":"Aktivitet 8\n"},null,{"$f":"IFERROR(INDEX(Aktivitet,SMALL(IF(Mål=$H$2,ROW(Aktivitet)-MIN(ROW(Aktivitet))+1),ROWS($B$3:B4)))&CHAR(10),\"\")","v":"Aktivitet 10\n"}]
[null,{"$f":"IFERROR(INDEX(Aktivitet,SMALL(IF(Mål=$B$2,ROW(Aktivitet)-MIN(ROW(Aktivitet))+1),ROWS($B$3:B5)))&\" \"&CHAR(10)&(INDEX(Resultat,SMALL(IF(Mål=$B$2,ROW(Resultat)-MIN(ROW(Resultat))+1),ROWS($B$3:B5))))&CHAR(10),\"\")","v":""},null,{"$f":"IFERROR(INDEX(Aktivitet,SMALL(IF(Mål=$D$2,ROW(Aktivitet)-MIN(ROW(Aktivitet))+1),ROWS($B$3:B5)))&CHAR(10),\"\")","v":"Aktivitet 5\n"},null,{"$f":"IFERROR(INDEX(Aktivitet,SMALL(IF(Mål=$F$2,ROW(Aktivitet)-MIN(ROW(Aktivitet))+1),ROWS($B$3:B5)))&CHAR(10),\"\")","v":""},null,{"$f":"IFERROR(INDEX(Aktivitet,SMALL(IF(Mål=$H$2,ROW(Aktivitet)-MIN(ROW(Aktivitet))+1),ROWS($B$3:B5)))&CHAR(10),\"\")","v":"Aktivitet 4\n"}]
[null,{"$f":"IFERROR(INDEX(Aktivitet,SMALL(IF(Mål=$B$2,ROW(Aktivitet)-MIN(ROW(Aktivitet))+1),ROWS($B$3:B6)))&\" \"&CHAR(10)&(INDEX(Resultat,SMALL(IF(Mål=$B$2,ROW(Resultat)-MIN(ROW(Resultat))+1),ROWS($B$3:B6))))&CHAR(10),\"\")","v":""},null,{"$f":"IFERROR(INDEX(Aktivitet,SMALL(IF(Mål=$D$2,ROW(Aktivitet)-MIN(ROW(Aktivitet))+1),ROWS($B$3:B6)))&CHAR(10),\"\")","v":""},null,{"$f":"IFERROR(INDEX(Aktivitet,SMALL(IF(Mål=$F$2,ROW(Aktivitet)-MIN(ROW(Aktivitet))+1),ROWS($B$3:B6)))&CHAR(10),\"\")","v":""},null,{"$f":"IFERROR(INDEX(Aktivitet,SMALL(IF(Mål=$H$2,ROW(Aktivitet)-MIN(ROW(Aktivitet))+1),ROWS($B$3:B6)))&CHAR(10),\"\")","v":""}]
[null,{"$f":"IFERROR(INDEX(Aktivitet,SMALL(IF(Mål=$B$2,ROW(Aktivitet)-MIN(ROW(Aktivitet))+1),ROWS($B$3:B7)))&\" \"&CHAR(10)&(INDEX(Resultat,SMALL(IF(Mål=$B$2,ROW(Resultat)-MIN(ROW(Resultat))+1),ROWS($B$3:B7))))&CHAR(10),\"\")","v":""},null,{"$f":"IFERROR(INDEX(Aktivitet,SMALL(IF(Mål=$D$2,ROW(Aktivitet)-MIN(ROW(Aktivitet))+1),ROWS($B$3:B7)))&CHAR(10),\"\")","v":""},null,{"$f":"IFERROR(INDEX(Aktivitet,SMALL(IF(Mål=$F$2,ROW(Aktivitet)-MIN(ROW(Aktivitet))+1),ROWS($B$3:B7)))&CHAR(10),\"\")","v":""},null,{"$f":"IFERROR(INDEX(Aktivitet,SMALL(IF(Mål=$H$2,ROW(Aktivitet)-MIN(ROW(Aktivitet))+1),ROWS($B$3:B7)))&CHAR(10),\"\")","v":""}]
[null,{"$f":"IFERROR(INDEX(Aktivitet,SMALL(IF(Mål=$B$2,ROW(Aktivitet)-MIN(ROW(Aktivitet))+1),ROWS($B$3:B8)))&\" \"&CHAR(10)&(INDEX(Resultat,SMALL(IF(Mål=$B$2,ROW(Resultat)-MIN(ROW(Resultat))+1),ROWS($B$3:B8))))&CHAR(10),\"\")","v":""},null,{"$f":"IFERROR(INDEX(Aktivitet,SMALL(IF(Mål=$D$2,ROW(Aktivitet)-MIN(ROW(Aktivitet))+1),ROWS($B$3:B8)))&CHAR(10),\"\")","v":""},null,{"$f":"IFERROR(INDEX(Aktivitet,SMALL(IF(Mål=$F$2,ROW(Aktivitet)-MIN(ROW(Aktivitet))+1),ROWS($B$3:B8)))&CHAR(10),\"\")","v":""},null,{"$f":"IFERROR(INDEX(Aktivitet,SMALL(IF(Mål=$H$2,ROW(Aktivitet)-MIN(ROW(Aktivitet))+1),ROWS($B$3:B8)))&CHAR(10),\"\")","v":""}]
[null,{"$f":"IFERROR(INDEX(Aktivitet,SMALL(IF(Mål=$B$2,ROW(Aktivitet)-MIN(ROW(Aktivitet))+1),ROWS($B$3:B9)))&\" \"&CHAR(10)&(INDEX(Resultat,SMALL(IF(Mål=$B$2,ROW(Resultat)-MIN(ROW(Resultat))+1),ROWS($B$3:B9))))&CHAR(10),\"\")","v":""},null,{"$f":"IFERROR(INDEX(Aktivitet,SMALL(IF(Mål=$D$2,ROW(Aktivitet)-MIN(ROW(Aktivitet))+1),ROWS($B$3:B9)))&CHAR(10),\"\")","v":""},null,{"$f":"IFERROR(INDEX(Aktivitet,SMALL(IF(Mål=$F$2,ROW(Aktivitet)-MIN(ROW(Aktivitet))+1),ROWS($B$3:B9)))&CHAR(10),\"\")","v":""},null,{"$f":"IFERROR(INDEX(Aktivitet,SMALL(IF(Mål=$H$2,ROW(Aktivitet)-MIN(ROW(Aktivitet))+1),ROWS($B$3:B9)))&CHAR(10),\"\")","v":""}]
[null,{"$f":"IFERROR(INDEX(Aktivitet,SMALL(IF(Mål=$B$2,ROW(Aktivitet)-MIN(ROW(Aktivitet))+1),ROWS($B$3:B10)))&\" \"&CHAR(10)&(INDEX(Resultat,SMALL(IF(Mål=$B$2,ROW(Resultat)-MIN(ROW(Resultat))+1),ROWS($B$3:B10))))&CHAR(10),\"\")","v":""},null,{"$f":"IFERROR(INDEX(Aktivitet,SMALL(IF(Mål=$D$2,ROW(Aktivitet)-MIN(ROW(Aktivitet))+1),ROWS($B$3:B10)))&CHAR(10),\"\")","v":""},null,{"$f":"IFERROR(INDEX(Aktivitet,SMALL(IF(Mål=$F$2,ROW(Aktivitet)-MIN(ROW(Aktivitet))+1),ROWS($B$3:B10)))&CHAR(10),\"\")","v":""},null,{"$f":"IFERROR(INDEX(Aktivitet,SMALL(IF(Mål=$H$2,ROW(Aktivitet)-MIN(ROW(Aktivitet))+1),ROWS($B$3:B10)))&CHAR(10),\"\")","v":""}]
[null,{"$f":"IFERROR(INDEX(Aktivitet,SMALL(IF(Mål=$B$2,ROW(Aktivitet)-MIN(ROW(Aktivitet))+1),ROWS($B$3:B11)))&\" \"&CHAR(10)&(INDEX(Resultat,SMALL(IF(Mål=$B$2,ROW(Resultat)-MIN(ROW(Resultat))+1),ROWS($B$3:B11))))&CHAR(10),\"\")","v":""},null,{"$f":"IFERROR(INDEX(Aktivitet,SMALL(IF(Mål=$D$2,ROW(Aktivitet)-MIN(ROW(Aktivitet))+1),ROWS($B$3:B11)))&CHAR(10),\"\")","v":""},null,{"$f":"IFERROR(INDEX(Aktivitet,SMALL(IF(Mål=$F$2,ROW(Aktivitet)-MIN(ROW(Aktivitet))+1),ROWS($B$3:B11)))&CHAR(10),\"\")","v":""},null,{"$f":"IFERROR(INDEX(Aktivitet,SMALL(IF(Mål=$H$2,ROW(Aktivitet)-MIN(ROW(Aktivitet))+1),ROWS($B$3:B11)))&CHAR(10),\"\")","v":""}]
[null,{"$f":"IFERROR(INDEX(Aktivitet,SMALL(IF(Mål=$B$2,ROW(Aktivitet)-MIN(ROW(Aktivitet))+1),ROWS($B$3:B12)))&\" \"&CHAR(10)&(INDEX(Resultat,SMALL(IF(Mål=$B$2,ROW(Resultat)-MIN(ROW(Resultat))+1),ROWS($B$3:B12))))&CHAR(10),\"\")","v":""},null,{"$f":"IFERROR(INDEX(Aktivitet,SMALL(IF(Mål=$D$2,ROW(Aktivitet)-MIN(ROW(Aktivitet))+1),ROWS($B$3:B12)))&CHAR(10),\"\")","v":""},null,{"$f":"IFERROR(INDEX(Aktivitet,SMALL(IF(Mål=$F$2,ROW(Aktivitet)-MIN(ROW(Aktivitet))+1),ROWS($B$3:B12)))&CHAR(10),\"\")","v":""},null,{"$f":"IFERROR(INDEX(Aktivitet,SMALL(IF(Mål=$H$2,ROW(Aktivitet)-MIN(ROW(Aktivitet))+1),ROWS($B$3:B12)))&CHAR(10),\"\")","v":""}]
[null,{"$f":"IFERROR(INDEX(Aktivitet,SMALL(IF(Mål=$B$2,ROW(Aktivitet)-MIN(ROW(Aktivitet))+1),ROWS($B$3:B13)))&\" \"&CHAR(10)&(INDEX(Resultat,SMALL(IF(Mål=$B$2,ROW(Resultat)-MIN(ROW(Resultat))+1),ROWS($B$3:B13))))&CHAR(10),\"\")","v":""},null,{"$f":"IFERROR(INDEX(Aktivitet,SMALL(IF(Mål=$D$2,ROW(Aktivitet)-MIN(ROW(Aktivitet))+1),ROWS($B$3:B13)))&CHAR(10),\"\")","v":""},null,{"$f":"IFERROR(INDEX(Aktivitet,SMALL(IF(Mål=$F$2,ROW(Aktivitet)-MIN(ROW(Aktivitet))+1),ROWS($B$3:B13)))&CHAR(10),\"\")","v":""},null,{"$f":"IFERROR(INDEX(Aktivitet,SMALL(IF(Mål=$H$2,ROW(Aktivitet)-MIN(ROW(Aktivitet))+1),ROWS($B$3:B13)))&CHAR(10),\"\")","v":""}]
[null,{"$f":"IFERROR(INDEX(Aktivitet,SMALL(IF(Mål=$B$2,ROW(Aktivitet)-MIN(ROW(Aktivitet))+1),ROWS($B$3:B14)))&\" \"&CHAR(10)&(INDEX(Resultat,SMALL(IF(Mål=$B$2,ROW(Resultat)-MIN(ROW(Resultat))+1),ROWS($B$3:B14))))&CHAR(10),\"\")","v":""},null,{"$f":"IFERROR(INDEX(Aktivitet,SMALL(IF(Mål=$D$2,ROW(Aktivitet)-MIN(ROW(Aktivitet))+1),ROWS($B$3:B14)))&CHAR(10),\"\")","v":""},null,{"$f":"IFERROR(INDEX(Aktivitet,SMALL(IF(Mål=$F$2,ROW(Aktivitet)-MIN(ROW(Aktivitet))+1),ROWS($B$3:B14)))&CHAR(10),\"\")","v":""},null,{"$f":"IFERROR(INDEX(Aktivitet,SMALL(IF(Mål=$H$2,ROW(Aktivitet)-MIN(ROW(Aktivitet))+1),ROWS($B$3:B14)))&CHAR(10),\"\")","v":""}]
[null,{"$f":"IFERROR(INDEX(Aktivitet,SMALL(IF(Mål=$B$2,ROW(Aktivitet)-MIN(ROW(Aktivitet))+1),ROWS($B$3:B15)))&\" \"&CHAR(10)&(INDEX(Resultat,SMALL(IF(Mål=$B$2,ROW(Resultat)-MIN(ROW(Resultat))+1),ROWS($B$3:B15))))&CHAR(10),\"\")","v":""},null,{"$f":"IFERROR(INDEX(Aktivitet,SMALL(IF(Mål=$D$2,ROW(Aktivitet)-MIN(ROW(Aktivitet))+1),ROWS($B$3:B15)))&CHAR(10),\"\")","v":""},null,{"$f":"IFERROR(INDEX(Aktivitet,SMALL(IF(Mål=$F$2,ROW(Aktivitet)-MIN(ROW(Aktivitet))+1),ROWS($B$3:B15)))&CHAR(10),\"\")","v":""},null,{"$f":"IFERROR(INDEX(Aktivitet,SMALL(IF(Mål=$H$2,ROW(Aktivitet)-MIN(ROW(Aktivitet))+1),ROWS($B$3:B15)))&CHAR(10),\"\")","v":""}]
[null,{"$f":"IFERROR(INDEX(Aktivitet,SMALL(IF(Mål=$B$2,ROW(Aktivitet)-MIN(ROW(Aktivitet))+1),ROWS($B$3:B16)))&\" \"&CHAR(10)&(INDEX(Resultat,SMALL(IF(Mål=$B$2,ROW(Resultat)-MIN(ROW(Resultat))+1),ROWS($B$3:B16))))&CHAR(10),\"\")","v":""},null,{"$f":"IFERROR(INDEX(Aktivitet,SMALL(IF(Mål=$D$2,ROW(Aktivitet)-MIN(ROW(Aktivitet))+1),ROWS($B$3:B16)))&CHAR(10),\"\")","v":""},null,{"$f":"IFERROR(INDEX(Aktivitet,SMALL(IF(Mål=$F$2,ROW(Aktivitet)-MIN(ROW(Aktivitet))+1),ROWS($B$3:B16)))&CHAR(10),\"\")","v":""},null,{"$f":"IFERROR(INDEX(Aktivitet,SMALL(IF(Mål=$H$2,ROW(Aktivitet)-MIN(ROW(Aktivitet))+1),ROWS($B$3:B16)))&CHAR(10),\"\")","v":""}]
[null,{"$f":"IFERROR(INDEX(Aktivitet,SMALL(IF(Mål=$B$2,ROW(Aktivitet)-MIN(ROW(Aktivitet))+1),ROWS($B$3:B17)))&\" \"&CHAR(10)&(INDEX(Resultat,SMALL(IF(Mål=$B$2,ROW(Resultat)-MIN(ROW(Resultat))+1),ROWS($B$3:B17))))&CHAR(10),\"\")","v":""},null,{"$f":"IFERROR(INDEX(Aktivitet,SMALL(IF(Mål=$D$2,ROW(Aktivitet)-MIN(ROW(Aktivitet))+1),ROWS($B$3:B17)))&CHAR(10),\"\")","v":""},null,{"$f":"IFERROR(INDEX(Aktivitet,SMALL(IF(Mål=$F$2,ROW(Aktivitet)-MIN(ROW(Aktivitet))+1),ROWS($B$3:B17)))&CHAR(10),\"\")","v":""},null,{"$f":"IFERROR(INDEX(Aktivitet,SMALL(IF(Mål=$H$2,ROW(Aktivitet)-MIN(ROW(Aktivitet))+1),ROWS($B$3:B17)))&CHAR(10),\"\")","v":""}]
[null,{"$f":"IFERROR(INDEX(Aktivitet,SMALL(IF(Mål=$B$2,ROW(Aktivitet)-MIN(ROW(Aktivitet))+1),ROWS($B$3:B18)))&\" \"&CHAR(10)&(INDEX(Resultat,SMALL(IF(Mål=$B$2,ROW(Resultat)-MIN(ROW(Resultat))+1),ROWS($B$3:B18))))&CHAR(10),\"\")","v":""},null,{"$f":"IFERROR(INDEX(Aktivitet,SMALL(IF(Mål=$D$2,ROW(Aktivitet)-MIN(ROW(Aktivitet))+1),ROWS($B$3:B18)))&CHAR(10),\"\")","v":""},null,{"$f":"IFERROR(INDEX(Aktivitet,SMALL(IF(Mål=$F$2,ROW(Aktivitet)-MIN(ROW(Aktivitet))+1),ROWS($B$3:B18)))&CHAR(10),\"\")","v":""},null,{"$f":"IFERROR(INDEX(Aktivitet,SMALL(IF(Mål=$H$2,ROW(Aktivitet)-MIN(ROW(Aktivitet))+1),ROWS($B$3:B18)))&CHAR(10),\"\")","v":""}]
[null,{"$f":"IFERROR(INDEX(Aktivitet,SMALL(IF(Mål=$B$2,ROW(Aktivitet)-MIN(ROW(Aktivitet))+1),ROWS($B$3:B19)))&\" \"&CHAR(10)&(INDEX(Resultat,SMALL(IF(Mål=$B$2,ROW(Resultat)-MIN(ROW(Resultat))+1),ROWS($B$3:B19))))&CHAR(10),\"\")","v":""},null,{"$f":"IFERROR(INDEX(Aktivitet,SMALL(IF(Mål=$D$2,ROW(Aktivitet)-MIN(ROW(Aktivitet))+1),ROWS($B$3:B19)))&CHAR(10),\"\")","v":""},null,{"$f":"IFERROR(INDEX(Aktivitet,SMALL(IF(Mål=$F$2,ROW(Aktivitet)-MIN(ROW(Aktivitet))+1),ROWS($B$3:B19)))&CHAR(10),\"\")","v":""},null,{"$f":"IFERROR(INDEX(Aktivitet,SMALL(IF(Mål=$H$2,ROW(Aktivitet)-MIN(ROW(Aktivitet))+1),ROWS($B$3:B19)))&CHAR(10),\"\")","v":""}]
[null,{"$f":"IFERROR(INDEX(Aktivitet,SMALL(IF(Mål=$B$2,ROW(Aktivitet)-MIN(ROW(Aktivitet))+1),ROWS($B$3:B20)))&\" \"&CHAR(10)&(INDEX(Resultat,SMALL(IF(Mål=$B$2,ROW(Resultat)-MIN(ROW(Resultat))+1),ROWS($B$3:B20))))&CHAR(10),\"\")","v":""},null,{"$f":"IFERROR(INDEX(Aktivitet,SMALL(IF(Mål=$D$2,ROW(Aktivitet)-MIN(ROW(Aktivitet))+1),ROWS($B$3:B20)))&CHAR(10),\"\")","v":""},null,{"$f":"IFERROR(INDEX(Aktivitet,SMALL(IF(Mål=$F$2,ROW(Aktivitet)-MIN(ROW(Aktivitet))+1),ROWS($B$3:B20)))&CHAR(10),\"\")","v":""},null,{"$f":"IFERROR(INDEX(Aktivitet,SMALL(IF(Mål=$H$2,ROW(Aktivitet)-MIN(ROW(Aktivitet))+1),ROWS($B$3:B20)))&CHAR(10),\"\")","v":""}]
[null,{"$f":"IFERROR(INDEX(Aktivitet,SMALL(IF(Mål=$B$2,ROW(Aktivitet)-MIN(ROW(Aktivitet))+1),ROWS($B$3:B21)))&\" \"&CHAR(10)&(INDEX(Resultat,SMALL(IF(Mål=$B$2,ROW(Resultat)-MIN(ROW(Resultat))+1),ROWS($B$3:B21))))&CHAR(10),\"\")","v":""},null,{"$f":"IFERROR(INDEX(Aktivitet,SMALL(IF(Mål=$D$2,ROW(Aktivitet)-MIN(ROW(Aktivitet))+1),ROWS($B$3:B21)))&CHAR(10),\"\")","v":""},null,{"$f":"IFERROR(INDEX(Aktivitet,SMALL(IF(Mål=$F$2,ROW(Aktivitet)-MIN(ROW(Aktivitet))+1),ROWS($B$3:B21)))&CHAR(10),\"\")","v":""},null,{"$f":"IFERROR(INDEX(Aktivitet,SMALL(IF(Mål=$H$2,ROW(Aktivitet)-MIN(ROW(Aktivitet))+1),ROWS($B$3:B21)))&CHAR(10),\"\")","v":""}]
[null,{"$f":"IFERROR(INDEX(Aktivitet,SMALL(IF(Mål=$B$2,ROW(Aktivitet)-MIN(ROW(Aktivitet))+1),ROWS($B$3:B22)))&\" \"&CHAR(10)&(INDEX(Resultat,SMALL(IF(Mål=$B$2,ROW(Resultat)-MIN(ROW(Resultat))+1),ROWS($B$3:B22))))&CHAR(10),\"\")","v":""},null,{"$f":"IFERROR(INDEX(Aktivitet,SMALL(IF(Mål=$D$2,ROW(Aktivitet)-MIN(ROW(Aktivitet))+1),ROWS($B$3:B22)))&CHAR(10),\"\")","v":""},null,{"$f":"IFERROR(INDEX(Aktivitet,SMALL(IF(Mål=$F$2,ROW(Aktivitet)-MIN(ROW(Aktivitet))+1),ROWS($B$3:B22)))&CHAR(10),\"\")","v":""},null,{"$f":"IFERROR(INDEX(Aktivitet,SMALL(IF(Mål=$H$2,ROW(Aktivitet)-MIN(ROW(Aktivitet))+1),ROWS($B$3:B22)))&CHAR(10),\"\")","v":""}]
[null,{"$f":"IFERROR(INDEX(Aktivitet,SMALL(IF(Mål=$B$2,ROW(Aktivitet)-MIN(ROW(Aktivitet))+1),ROWS($B$3:B23)))&\" \"&CHAR(10)&(INDEX(Resultat,SMALL(IF(Mål=$B$2,ROW(Resultat)-MIN(ROW(Resultat))+1),ROWS($B$3:B23))))&CHAR(10),\"\")","v":""},null,{"$f":"IFERROR(INDEX(Aktivitet,SMALL(IF(Mål=$D$2,ROW(Aktivitet)-MIN(ROW(Aktivitet))+1),ROWS($B$3:B23)))&CHAR(10),\"\")","v":""},null,{"$f":"IFERROR(INDEX(Aktivitet,SMALL(IF(Mål=$F$2,ROW(Aktivitet)-MIN(ROW(Aktivitet))+1),ROWS($B$3:B23)))&CHAR(10),\"\")","v":""},null,{"$f":"IFERROR(INDEX(Aktivitet,SMALL(IF(Mål=$H$2,ROW(Aktivitet)-MIN(ROW(Aktivitet))+1),ROWS($B$3:B23)))&CHAR(10),\"\")","v":""}]
[null,{"$f":"IFERROR(INDEX(Aktivitet,SMALL(IF(Mål=$B$2,ROW(Aktivitet)-MIN(ROW(Aktivitet))+1),ROWS($B$3:B24)))&\" \"&CHAR(10)&(INDEX(Resultat,SMALL(IF(Mål=$B$2,ROW(Resultat)-MIN(ROW(Resultat))+1),ROWS($B$3:B24))))&CHAR(10),\"\")","v":""},null,{"$f":"IFERROR(INDEX(Aktivitet,SMALL(IF(Mål=$D$2,ROW(Aktivitet)-MIN(ROW(Aktivitet))+1),ROWS($B$3:B24)))&CHAR(10),\"\")","v":""},null,{"$f":"IFERROR(INDEX(Aktivitet,SMALL(IF(Mål=$F$2,ROW(Aktivitet)-MIN(ROW(Aktivitet))+1),ROWS($B$3:B24)))&CHAR(10),\"\")","v":""},null,{"$f":"IFERROR(INDEX(Aktivitet,SMALL(IF(Mål=$H$2,ROW(Aktivitet)-MIN(ROW(Aktivitet))+1),ROWS($B$3:B24)))&CHAR(10),\"\")","v":""}]
[null,{"$f":"IFERROR(INDEX(Aktivitet,SMALL(IF(Mål=$B$2,ROW(Aktivitet)-MIN(ROW(Aktivitet))+1),ROWS($B$3:B25)))&\" \"&CHAR(10)&(INDEX(Resultat,SMALL(IF(Mål=$B$2,ROW(Resultat)-MIN(ROW(Resultat))+1),ROWS($B$3:B25))))&CHAR(10),\"\")","v":""},null,{"$f":"IFERROR(INDEX(Aktivitet,SMALL(IF(Mål=$D$2,ROW(Aktivitet)-MIN(ROW(Aktivitet))+1),ROWS($B$3:B25)))&CHAR(10),\"\")","v":""},null,{"$f":"IFERROR(INDEX(Aktivitet,SMALL(IF(Mål=$F$2,ROW(Aktivitet)-MIN(ROW(Aktivitet))+1),ROWS($B$3:B25)))&CHAR(10),\"\")","v":""},null,{"$f":"IFERROR(INDEX(Aktivitet,SMALL(IF(Mål=$H$2,ROW(Aktivitet)-MIN(ROW(Aktivitet))+1),ROWS($B$3:B25)))&CHAR(10),\"\")","v":""}]
[null,{"$f":"IFERROR(INDEX(Aktivitet,SMALL(IF(Mål=$B$2,ROW(Aktivitet)-MIN(ROW(Aktivitet))+1),ROWS($B$3:B26)))&\" \"&CHAR(10)&(INDEX(Resultat,SMALL(IF(Mål=$B$2,ROW(Resultat)-MIN(ROW(Resultat))+1),ROWS($B$3:B26))))&CHAR(10),\"\")","v":""},null,{"$f":"IFERROR(INDEX(Aktivitet,SMALL(IF(Mål=$D$2,ROW(Aktivitet)-MIN(ROW(Aktivitet))+1),ROWS($B$3:B26)))&CHAR(10),\"\")","v":""},null,{"$f":"IFERROR(INDEX(Aktivitet,SMALL(IF(Mål=$F$2,ROW(Aktivitet)-MIN(ROW(Aktivitet))+1),ROWS($B$3:B26)))&CHAR(10),\"\")","v":""},null,{"$f":"IFERROR(INDEX(Aktivitet,SMALL(IF(Mål=$H$2,ROW(Aktivitet)-MIN(ROW(Aktivitet))+1),ROWS($B$3:B26)))&CHAR(10),\"\")","v":""}]
[null,{"$f":"IFERROR(INDEX(Aktivitet,SMALL(IF(Mål=$B$2,ROW(Aktivitet)-MIN(ROW(Aktivitet))+1),ROWS($B$3:B27)))&\" \"&CHAR(10)&(INDEX(Resultat,SMALL(IF(Mål=$B$2,ROW(Resultat)-MIN(ROW(Resultat))+1),ROWS($B$3:B27))))&CHAR(10),\"\")","v":""},null,{"$f":"IFERROR(INDEX(Aktivitet,SMALL(IF(Mål=$D$2,ROW(Aktivitet)-MIN(ROW(Aktivitet))+1),ROWS($B$3:B27)))&CHAR(10),\"\")","v":""},null,{"$f":"IFERROR(INDEX(Aktivitet,SMALL(IF(Mål=$F$2,ROW(Aktivitet)-MIN(ROW(Aktivitet))+1),ROWS($B$3:B27)))&CHAR(10),\"\")","v":""},null,{"$f":"IFERROR(INDEX(Aktivitet,SMALL(IF(Mål=$H$2,ROW(Aktivitet)-MIN(ROW(Aktivitet))+1),ROWS($B$3:B27)))&CHAR(10),\"\")","v":""}]
[null,{"$f":"IFERROR(INDEX(Aktivitet,SMALL(IF(Mål=$B$2,ROW(Aktivitet)-MIN(ROW(Aktivitet))+1),ROWS($B$3:B28)))&\" \"&CHAR(10)&(INDEX(Resultat,SMALL(IF(Mål=$B$2,ROW(Resultat)-MIN(ROW(Resultat))+1),ROWS($B$3:B28))))&CHAR(10),\"\")","v":""},null,{"$f":"IFERROR(INDEX(Aktivitet,SMALL(IF(Mål=$D$2,ROW(Aktivitet)-MIN(ROW(Aktivitet))+1),ROWS($B$3:B28)))&CHAR(10),\"\")","v":""},null,{"$f":"IFERROR(INDEX(Aktivitet,SMALL(IF(Mål=$F$2,ROW(Aktivitet)-MIN(ROW(Aktivitet))+1),ROWS($B$3:B28)))&CHAR(10),\"\")","v":""},null,{"$f":"IFERROR(INDEX(Aktivitet,SMALL(IF(Mål=$H$2,ROW(Aktivitet)-MIN(ROW(Aktivitet))+1),ROWS($B$3:B28)))&CHAR(10),\"\")","v":""}]
[null,{"$f":"IFERROR(INDEX(Aktivitet,SMALL(IF(Mål=$B$2,ROW(Aktivitet)-MIN(ROW(Aktivitet))+1),ROWS($B$3:B29)))&\" \"&CHAR(10)&(INDEX(Resultat,SMALL(IF(Mål=$B$2,ROW(Resultat)-MIN(ROW(Resultat))+1),ROWS($B$3:B29))))&CHAR(10),\"\")","v":""},null,{"$f":"IFERROR(INDEX(Aktivitet,SMALL(IF(Mål=$D$2,ROW(Aktivitet)-MIN(ROW(Aktivitet))+1),ROWS($B$3:B29)))&CHAR(10),\"\")","v":""},null,{"$f":"IFERROR(INDEX(Aktivitet,SMALL(IF(Mål=$F$2,ROW(Aktivitet)-MIN(ROW(Aktivitet))+1),ROWS($B$3:B29)))&CHAR(10),\"\")","v":""},null,{"$f":"IFERROR(INDEX(Aktivitet,SMALL(IF(Mål=$H$2,ROW(Aktivitet)-MIN(ROW(Aktivitet))+1),ROWS($B$3:B29)))&CHAR(10),\"\")","v":""}]
[null,{"$f":"IFERROR(INDEX(Aktivitet,SMALL(IF(Mål=$B$2,ROW(Aktivitet)-MIN(ROW(Aktivitet))+1),ROWS($B$3:B30)))&\" \"&CHAR(10)&(INDEX(Resultat,SMALL(IF(Mål=$B$2,ROW(Resultat)-MIN(ROW(Resultat))+1),ROWS($B$3:B30))))&CHAR(10),\"\")","v":""},null,{"$f":"IFERROR(INDEX(Aktivitet,SMALL(IF(Mål=$D$2,ROW(Aktivitet)-MIN(ROW(Aktivitet))+1),ROWS($B$3:B30)))&CHAR(10),\"\")","v":""},null,{"$f":"IFERROR(INDEX(Aktivitet,SMALL(IF(Mål=$F$2,ROW(Aktivitet)-MIN(ROW(Aktivitet))+1),ROWS($B$3:B30)))&CHAR(10),\"\")","v":""},null,{"$f":"IFERROR(INDEX(Aktivitet,SMALL(IF(Mål=$H$2,ROW(Aktivitet)-MIN(ROW(Aktivitet))+1),ROWS($B$3:B30)))&CHAR(10),\"\")","v":""}]
[null,{"$f":"IFERROR(INDEX(Aktivitet,SMALL(IF(Mål=$B$2,ROW(Aktivitet)-MIN(ROW(Aktivitet))+1),ROWS($B$3:B31)))&\" \"&CHAR(10)&(INDEX(Resultat,SMALL(IF(Mål=$B$2,ROW(Resultat)-MIN(ROW(Resultat))+1),ROWS($B$3:B31))))&CHAR(10),\"\")","v":""},null,{"$f":"IFERROR(INDEX(Aktivitet,SMALL(IF(Mål=$D$2,ROW(Aktivitet)-MIN(ROW(Aktivitet))+1),ROWS($B$3:B31)))&CHAR(10),\"\")","v":""},null,{"$f":"IFERROR(INDEX(Aktivitet,SMALL(IF(Mål=$F$2,ROW(Aktivitet)-MIN(ROW(Aktivitet))+1),ROWS($B$3:B31)))&CHAR(10),\"\")","v":""},null,{"$f":"IFERROR(INDEX(Aktivitet,SMALL(IF(Mål=$H$2,ROW(Aktivitet)-MIN(ROW(Aktivitet))+1),ROWS($B$3:B31)))&CHAR(10),\"\")","v":""}]
[null,{"$f":"IFERROR(INDEX(Aktivitet,SMALL(IF(Mål=$B$2,ROW(Aktivitet)-MIN(ROW(Aktivitet))+1),ROWS($B$3:B32)))&\" \"&CHAR(10)&(INDEX(Resultat,SMALL(IF(Mål=$B$2,ROW(Resultat)-MIN(ROW(Resultat))+1),ROWS($B$3:B32))))&CHAR(10),\"\")","v":""},null,{"$f":"IFERROR(INDEX(Aktivitet,SMALL(IF(Mål=$D$2,ROW(Aktivitet)-MIN(ROW(Aktivitet))+1),ROWS($B$3:B32)))&CHAR(10),\"\")","v":""},null,{"$f":"IFERROR(INDEX(Aktivitet,SMALL(IF(Mål=$F$2,ROW(Aktivitet)-MIN(ROW(Aktivitet))+1),ROWS($B$3:B32)))&CHAR(10),\"\")","v":""},null,{"$f":"IFERROR(INDEX(Aktivitet,SMALL(IF(Mål=$H$2,ROW(Aktivitet)-MIN(ROW(Aktivitet))+1),ROWS($B$3:B32)))&CHAR(10),\"\")","v":""}]
[null,{"$f":"IFERROR(INDEX(Aktivitet,SMALL(IF(Mål=$B$2,ROW(Aktivitet)-MIN(ROW(Aktivitet))+1),ROWS($B$3:B33)))&\" \"&CHAR(10)&(INDEX(Resultat,SMALL(IF(Mål=$B$2,ROW(Resultat)-MIN(ROW(Resultat))+1),ROWS($B$3:B33))))&CHAR(10),\"\")","v":""},null,{"$f":"IFERROR(INDEX(Aktivitet,SMALL(IF(Mål=$D$2,ROW(Aktivitet)-MIN(ROW(Aktivitet))+1),ROWS($B$3:B33)))&CHAR(10),\"\")","v":""},null,{"$f":"IFERROR(INDEX(Aktivitet,SMALL(IF(Mål=$F$2,ROW(Aktivitet)-MIN(ROW(Aktivitet))+1),ROWS($B$3:B33)))&CHAR(10),\"\")","v":""},null,{"$f":"IFERROR(INDEX(Aktivitet,SMALL(IF(Mål=$H$2,ROW(Aktivitet)-MIN(ROW(Aktivitet))+1),ROWS($B$3:B33)))&CHAR(10),\"\")","v":""}]
[null,{"$f":"IFERROR(INDEX(Aktivitet,SMALL(IF(Mål=$B$2,ROW(Aktivitet)-MIN(ROW(Aktivitet))+1),ROWS($B$3:B34)))&\" \"&CHAR(10)&(INDEX(Resultat,SMALL(IF(Mål=$B$2,ROW(Resultat)-MIN(ROW(Resultat))+1),ROWS($B$3:B34))))&CHAR(10),\"\")","v":""},null,{"$f":"IFERROR(INDEX(Aktivitet,SMALL(IF(Mål=$D$2,ROW(Aktivitet)-MIN(ROW(Aktivitet))+1),ROWS($B$3:B34)))&CHAR(10),\"\")","v":""},null,{"$f":"IFERROR(INDEX(Aktivitet,SMALL(IF(Mål=$F$2,ROW(Aktivitet)-MIN(ROW(Aktivitet))+1),ROWS($B$3:B34)))&CHAR(10),\"\")","v":""},null,{"$f":"IFERROR(INDEX(Aktivitet,SMALL(IF(Mål=$H$2,ROW(Aktivitet)-MIN(ROW(Aktivitet))+1),ROWS($B$3:B34)))&CHAR(10),\"\")","v":""}]
[null,{"$f":"IFERROR(INDEX(Aktivitet,SMALL(IF(Mål=$B$2,ROW(Aktivitet)-MIN(ROW(Aktivitet))+1),ROWS($B$3:B35)))&\" \"&CHAR(10)&(INDEX(Resultat,SMALL(IF(Mål=$B$2,ROW(Resultat)-MIN(ROW(Resultat))+1),ROWS($B$3:B35))))&CHAR(10),\"\")","v":""},null,{"$f":"IFERROR(INDEX(Aktivitet,SMALL(IF(Mål=$D$2,ROW(Aktivitet)-MIN(ROW(Aktivitet))+1),ROWS($B$3:B35)))&CHAR(10),\"\")","v":""},null,{"$f":"IFERROR(INDEX(Aktivitet,SMALL(IF(Mål=$F$2,ROW(Aktivitet)-MIN(ROW(Aktivitet))+1),ROWS($B$3:B35)))&CHAR(10),\"\")","v":""},null,{"$f":"IFERROR(INDEX(Aktivitet,SMALL(IF(Mål=$H$2,ROW(Aktivitet)-MIN(ROW(Aktivitet))+1),ROWS($B$3:B35)))&CHAR(10),\"\")","v":""}]
[null,{"$f":"IFERROR(INDEX(Aktivitet,SMALL(IF(Mål=$B$2,ROW(Aktivitet)-MIN(ROW(Aktivitet))+1),ROWS($B$3:B36)))&\" \"&CHAR(10)&(INDEX(Resultat,SMALL(IF(Mål=$B$2,ROW(Resultat)-MIN(ROW(Resultat))+1),ROWS($B$3:B36))))&CHAR(10),\"\")","v":""},null,{"$f":"IFERROR(INDEX(Aktivitet,SMALL(IF(Mål=$D$2,ROW(Aktivitet)-MIN(ROW(Aktivitet))+1),ROWS($B$3:B36)))&CHAR(10),\"\")","v":""},null,{"$f":"IFERROR(INDEX(Aktivitet,SMALL(IF(Mål=$F$2,ROW(Aktivitet)-MIN(ROW(Aktivitet))+1),ROWS($B$3:B36)))&CHAR(10),\"\")","v":""},null,{"$f":"IFERROR(INDEX(Aktivitet,SMALL(IF(Mål=$H$2,ROW(Aktivitet)-MIN(ROW(Aktivitet))+1),ROWS($B$3:B36)))&CHAR(10),\"\")","v":""}]
[null,{"$f":"IFERROR(INDEX(Aktivitet,SMALL(IF(Mål=$B$2,ROW(Aktivitet)-MIN(ROW(Aktivitet))+1),ROWS($B$3:B37)))&\" \"&CHAR(10)&(INDEX(Resultat,SMALL(IF(Mål=$B$2,ROW(Resultat)-MIN(ROW(Resultat))+1),ROWS($B$3:B37))))&CHAR(10),\"\")","v":""},null,{"$f":"IFERROR(INDEX(Aktivitet,SMALL(IF(Mål=$D$2,ROW(Aktivitet)-MIN(ROW(Aktivitet))+1),ROWS($B$3:B37)))&CHAR(10),\"\")","v":""},null,{"$f":"IFERROR(INDEX(Aktivitet,SMALL(IF(Mål=$F$2,ROW(Aktivitet)-MIN(ROW(Aktivitet))+1),ROWS($B$3:B37)))&CHAR(10),\"\")","v":""},null,{"$f":"IFERROR(INDEX(Aktivitet,SMALL(IF(Mål=$H$2,ROW(Aktivitet)-MIN(ROW(Aktivitet))+1),ROWS($B$3:B37)))&CHAR(10),\"\")","v":""}]
[null,{"$f":"IFERROR(INDEX(Aktivitet,SMALL(IF(Mål=$B$2,ROW(Aktivitet)-MIN(ROW(Aktivitet))+1),ROWS($B$3:B38)))&\" \"&CHAR(10)&(INDEX(Resultat,SMALL(IF(Mål=$B$2,ROW(Resultat)-MIN(ROW(Resultat))+1),ROWS($B$3:B38))))&CHAR(10),\"\")","v":""},null,{"$f":"IFERROR(INDEX(Aktivitet,SMALL(IF(Mål=$D$2,ROW(Aktivitet)-MIN(ROW(Aktivitet))+1),ROWS($B$3:B38)))&CHAR(10),\"\")","v":""},null,{"$f":"IFERROR(INDEX(Aktivitet,SMALL(IF(Mål=$F$2,ROW(Aktivitet)-MIN(ROW(Aktivitet))+1),ROWS($B$3:B38)))&CHAR(10),\"\")","v":""},null,{"$f":"IFERROR(INDEX(Aktivitet,SMALL(IF(Mål=$H$2,ROW(Aktivitet)-MIN(ROW(Aktivitet))+1),ROWS($B$3:B38)))&CHAR(10),\"\")","v":""}]
[null,{"$f":"IFERROR(INDEX(Aktivitet,SMALL(IF(Mål=$B$2,ROW(Aktivitet)-MIN(ROW(Aktivitet))+1),ROWS($B$3:B39)))&\" \"&CHAR(10)&(INDEX(Resultat,SMALL(IF(Mål=$B$2,ROW(Resultat)-MIN(ROW(Resultat))+1),ROWS($B$3:B39))))&CHAR(10),\"\")","v":""},null,{"$f":"IFERROR(INDEX(Aktivitet,SMALL(IF(Mål=$D$2,ROW(Aktivitet)-MIN(ROW(Aktivitet))+1),ROWS($B$3:B39)))&CHAR(10),\"\")","v":""},null,{"$f":"IFERROR(INDEX(Aktivitet,SMALL(IF(Mål=$F$2,ROW(Aktivitet)-MIN(ROW(Aktivitet))+1),ROWS($B$3:B39)))&CHAR(10),\"\")","v":""},null,{"$f":"IFERROR(INDEX(Aktivitet,SMALL(IF(Mål=$H$2,ROW(Aktivitet)-MIN(ROW(Aktivitet))+1),ROWS($B$3:B39)))&CHAR(10),\"\")","v":""}]
[null,{"$f":"IFERROR(INDEX(Aktivitet,SMALL(IF(Mål=$B$2,ROW(Aktivitet)-MIN(ROW(Aktivitet))+1),ROWS($B$3:B40)))&\" \"&CHAR(10)&(INDEX(Resultat,SMALL(IF(Mål=$B$2,ROW(Resultat)-MIN(ROW(Resultat))+1),ROWS($B$3:B40))))&CHAR(10),\"\")","v":""},null,{"$f":"IFERROR(INDEX(Aktivitet,SMALL(IF(Mål=$D$2,ROW(Aktivitet)-MIN(ROW(Aktivitet))+1),ROWS($B$3:B40)))&CHAR(10),\"\")","v":""},null,{"$f":"IFERROR(INDEX(Aktivitet,SMALL(IF(Mål=$F$2,ROW(Aktivitet)-MIN(ROW(Aktivitet))+1),ROWS($B$3:B40)))&CHAR(10),\"\")","v":""},null,{"$f":"IFERROR(INDEX(Aktivitet,SMALL(IF(Mål=$H$2,ROW(Aktivitet)-MIN(ROW(Aktivitet))+1),ROWS($B$3:B40)))&CHAR(10),\"\")","v":""}]
[null,{"$f":"IFERROR(INDEX(Aktivitet,SMALL(IF(Mål=$B$2,ROW(Aktivitet)-MIN(ROW(Aktivitet))+1),ROWS($B$3:B41)))&\" \"&CHAR(10)&(INDEX(Resultat,SMALL(IF(Mål=$B$2,ROW(Resultat)-MIN(ROW(Resultat))+1),ROWS($B$3:B41))))&CHAR(10),\"\")","v":""},null,{"$f":"IFERROR(INDEX(Aktivitet,SMALL(IF(Mål=$D$2,ROW(Aktivitet)-MIN(ROW(Aktivitet))+1),ROWS($B$3:B41)))&CHAR(10),\"\")","v":""},null,{"$f":"IFERROR(INDEX(Aktivitet,SMALL(IF(Mål=$F$2,ROW(Aktivitet)-MIN(ROW(Aktivitet))+1),ROWS($B$3:B41)))&CHAR(10),\"\")","v":""},null,{"$f":"IFERROR(INDEX(Aktivitet,SMALL(IF(Mål=$H$2,ROW(Aktivitet)-MIN(ROW(Aktivitet))+1),ROWS($B$3:B41)))&CHAR(10),\"\")","v":""}]
[null,{"$f":"IFERROR(INDEX(Aktivitet,SMALL(IF(Mål=$B$2,ROW(Aktivitet)-MIN(ROW(Aktivitet))+1),ROWS($B$3:B42)))&\" \"&CHAR(10)&(INDEX(Resultat,SMALL(IF(Mål=$B$2,ROW(Resultat)-MIN(ROW(Resultat))+1),ROWS($B$3:B42))))&CHAR(10),\"\")","v":""},null,{"$f":"IFERROR(INDEX(Aktivitet,SMALL(IF(Mål=$D$2,ROW(Aktivitet)-MIN(ROW(Aktivitet))+1),ROWS($B$3:B42)))&CHAR(10),\"\")","v":""},null,{"$f":"IFERROR(INDEX(Aktivitet,SMALL(IF(Mål=$F$2,ROW(Aktivitet)-MIN(ROW(Aktivitet))+1),ROWS($B$3:B42)))&CHAR(10),\"\")","v":""},null,{"$f":"IFERROR(INDEX(Aktivitet,SMALL(IF(Mål=$H$2,ROW(Aktivitet)-MIN(ROW(Aktivitet))+1),ROWS($B$3:B42)))&CHAR(10),\"\")","v":""}]
[null,{"$f":"IFERROR(INDEX(Aktivitet,SMALL(IF(Mål=$B$2,ROW(Aktivitet)-MIN(ROW(Aktivitet))+1),ROWS($B$3:B43)))&\" \"&CHAR(10)&(INDEX(Resultat,SMALL(IF(Mål=$B$2,ROW(Resultat)-MIN(ROW(Resultat))+1),ROWS($B$3:B43))))&CHAR(10),\"\")","v":""},null,{"$f":"IFERROR(INDEX(Aktivitet,SMALL(IF(Mål=$D$2,ROW(Aktivitet)-MIN(ROW(Aktivitet))+1),ROWS($B$3:B43)))&CHAR(10),\"\")","v":""},null,{"$f":"IFERROR(INDEX(Aktivitet,SMALL(IF(Mål=$F$2,ROW(Aktivitet)-MIN(ROW(Aktivitet))+1),ROWS($B$3:B43)))&CHAR(10),\"\")","v":""},null,{"$f":"IFERROR(INDEX(Aktivitet,SMALL(IF(Mål=$H$2,ROW(Aktivitet)-MIN(ROW(Aktivitet))+1),ROWS($B$3:B43)))&CHAR(10),\"\")","v":""}]
[null,{"$f":"IFERROR(INDEX(Aktivitet,SMALL(IF(Mål=$B$2,ROW(Aktivitet)-MIN(ROW(Aktivitet))+1),ROWS($B$3:B44)))&\" \"&CHAR(10)&(INDEX(Resultat,SMALL(IF(Mål=$B$2,ROW(Resultat)-MIN(ROW(Resultat))+1),ROWS($B$3:B44))))&CHAR(10),\"\")","v":""},null,{"$f":"IFERROR(INDEX(Aktivitet,SMALL(IF(Mål=$D$2,ROW(Aktivitet)-MIN(ROW(Aktivitet))+1),ROWS($B$3:B44)))&CHAR(10),\"\")","v":""},null,{"$f":"IFERROR(INDEX(Aktivitet,SMALL(IF(Mål=$F$2,ROW(Aktivitet)-MIN(ROW(Aktivitet))+1),ROWS($B$3:B44)))&CHAR(10),\"\")","v":""},null,{"$f":"IFERROR(INDEX(Aktivitet,SMALL(IF(Mål=$H$2,ROW(Aktivitet)-MIN(ROW(Aktivitet))+1),ROWS($B$3:B44)))&CHAR(10),\"\")","v":""}]
[null,{"$f":"IFERROR(INDEX(Aktivitet,SMALL(IF(Mål=$B$2,ROW(Aktivitet)-MIN(ROW(Aktivitet))+1),ROWS($B$3:B45)))&\" \"&CHAR(10)&(INDEX(Resultat,SMALL(IF(Mål=$B$2,ROW(Resultat)-MIN(ROW(Resultat))+1),ROWS($B$3:B45))))&CHAR(10),\"\")","v":""},null,{"$f":"IFERROR(INDEX(Aktivitet,SMALL(IF(Mål=$D$2,ROW(Aktivitet)-MIN(ROW(Aktivitet))+1),ROWS($B$3:B45)))&CHAR(10),\"\")","v":""},null,{"$f":"IFERROR(INDEX(Aktivitet,SMALL(IF(Mål=$F$2,ROW(Aktivitet)-MIN(ROW(Aktivitet))+1),ROWS($B$3:B45)))&CHAR(10),\"\")","v":""},null,{"$f":"IFERROR(INDEX(Aktivitet,SMALL(IF(Mål=$H$2,ROW(Aktivitet)-MIN(ROW(Aktivitet))+1),ROWS($B$3:B45)))&CHAR(10),\"\")","v":""}]
[null,{"$f":"IFERROR(INDEX(Aktivitet,SMALL(IF(Mål=$B$2,ROW(Aktivitet)-MIN(ROW(Aktivitet))+1),ROWS($B$3:B46)))&\" \"&CHAR(10)&(INDEX(Resultat,SMALL(IF(Mål=$B$2,ROW(Resultat)-MIN(ROW(Resultat))+1),ROWS($B$3:B46))))&CHAR(10),\"\")","v":""},null,{"$f":"IFERROR(INDEX(Aktivitet,SMALL(IF(Mål=$D$2,ROW(Aktivitet)-MIN(ROW(Aktivitet))+1),ROWS($B$3:B46)))&CHAR(10),\"\")","v":""},null,{"$f":"IFERROR(INDEX(Aktivitet,SMALL(IF(Mål=$F$2,ROW(Aktivitet)-MIN(ROW(Aktivitet))+1),ROWS($B$3:B46)))&CHAR(10),\"\")","v":""},null,{"$f":"IFERROR(INDEX(Aktivitet,SMALL(IF(Mål=$H$2,ROW(Aktivitet)-MIN(ROW(Aktivitet))+1),ROWS($B$3:B46)))&CHAR(10),\"\")","v":""}]
[null,{"$f":"IFERROR(INDEX(Aktivitet,SMALL(IF(Mål=$B$2,ROW(Aktivitet)-MIN(ROW(Aktivitet))+1),ROWS($B$3:B47)))&\" \"&CHAR(10)&(INDEX(Resultat,SMALL(IF(Mål=$B$2,ROW(Resultat)-MIN(ROW(Resultat))+1),ROWS($B$3:B47))))&CHAR(10),\"\")","v":""},null,{"$f":"IFERROR(INDEX(Aktivitet,SMALL(IF(Mål=$D$2,ROW(Aktivitet)-MIN(ROW(Aktivitet))+1),ROWS($B$3:B47)))&CHAR(10),\"\")","v":""},null,{"$f":"IFERROR(INDEX(Aktivitet,SMALL(IF(Mål=$F$2,ROW(Aktivitet)-MIN(ROW(Aktivitet))+1),ROWS($B$3:B47)))&CHAR(10),\"\")","v":""},null,{"$f":"IFERROR(INDEX(Aktivitet,SMALL(IF(Mål=$H$2,ROW(Aktivitet)-MIN(ROW(Aktivitet))+1),ROWS($B$3:B47)))&CHAR(10),\"\")","v":""}]
[null,{"$f":"IFERROR(INDEX(Aktivitet,SMALL(IF(Mål=$B$2,ROW(Aktivitet)-MIN(ROW(Aktivitet))+1),ROWS($B$3:B48)))&\" \"&CHAR(10)&(INDEX(Resultat,SMALL(IF(Mål=$B$2,ROW(Resultat)-MIN(ROW(Resultat))+1),ROWS($B$3:B48))))&CHAR(10),\"\")","v":""},null,{"$f":"IFERROR(INDEX(Aktivitet,SMALL(IF(Mål=$D$2,ROW(Aktivitet)-MIN(ROW(Aktivitet))+1),ROWS($B$3:B48)))&CHAR(10),\"\")","v":""},null,{"$f":"IFERROR(INDEX(Aktivitet,SMALL(IF(Mål=$F$2,ROW(Aktivitet)-MIN(ROW(Aktivitet))+1),ROWS($B$3:B48)))&CHAR(10),\"\")","v":""},null,{"$f":"IFERROR(INDEX(Aktivitet,SMALL(IF(Mål=$H$2,ROW(Aktivitet)-MIN(ROW(Aktivitet))+1),ROWS($B$3:B48)))&CHAR(10),\"\")","v":""}]
[null,{"$f":"IFERROR(INDEX(Aktivitet,SMALL(IF(Mål=$B$2,ROW(Aktivitet)-MIN(ROW(Aktivitet))+1),ROWS($B$3:B49)))&\" \"&CHAR(10)&(INDEX(Resultat,SMALL(IF(Mål=$B$2,ROW(Resultat)-MIN(ROW(Resultat))+1),ROWS($B$3:B49))))&CHAR(10),\"\")","v":""},null,{"$f":"IFERROR(INDEX(Aktivitet,SMALL(IF(Mål=$D$2,ROW(Aktivitet)-MIN(ROW(Aktivitet))+1),ROWS($B$3:B49)))&CHAR(10),\"\")","v":""},null,{"$f":"IFERROR(INDEX(Aktivitet,SMALL(IF(Mål=$F$2,ROW(Aktivitet)-MIN(ROW(Aktivitet))+1),ROWS($B$3:B49)))&CHAR(10),\"\")","v":""},null,{"$f":"IFERROR(INDEX(Aktivitet,SMALL(IF(Mål=$H$2,ROW(Aktivitet)-MIN(ROW(Aktivitet))+1),ROWS($B$3:B49)))&CHAR(10),\"\")","v":""}]
[null,{"$f":"IFERROR(INDEX(Aktivitet,SMALL(IF(Mål=$B$2,ROW(Aktivitet)-MIN(ROW(Aktivitet))+1),ROWS($B$3:B50)))&\" \"&CHAR(10)&(INDEX(Resultat,SMALL(IF(Mål=$B$2,ROW(Resultat)-MIN(ROW(Resultat))+1),ROWS($B$3:B50))))&CHAR(10),\"\")","v":""},null,{"$f":"IFERROR(INDEX(Aktivitet,SMALL(IF(Mål=$D$2,ROW(Aktivitet)-MIN(ROW(Aktivitet))+1),ROWS($B$3:B50)))&CHAR(10),\"\")","v":""},null,{"$f":"IFERROR(INDEX(Aktivitet,SMALL(IF(Mål=$F$2,ROW(Aktivitet)-MIN(ROW(Aktivitet))+1),ROWS($B$3:B50)))&CHAR(10),\"\")","v":""},null,{"$f":"IFERROR(INDEX(Aktivitet,SMALL(IF(Mål=$H$2,ROW(Aktivitet)-MIN(ROW(Aktivitet))+1),ROWS($B$3:B50)))&CHAR(10),\"\")","v":""}]
[null,{"$f":"IFERROR(INDEX(Aktivitet,SMALL(IF(Mål=$B$2,ROW(Aktivitet)-MIN(ROW(Aktivitet))+1),ROWS($B$3:B51)))&\" \"&CHAR(10)&(INDEX(Resultat,SMALL(IF(Mål=$B$2,ROW(Resultat)-MIN(ROW(Resultat))+1),ROWS($B$3:B51))))&CHAR(10),\"\")","v":""},null,{"$f":"IFERROR(INDEX(Aktivitet,SMALL(IF(Mål=$D$2,ROW(Aktivitet)-MIN(ROW(Aktivitet))+1),ROWS($B$3:B51)))&CHAR(10),\"\")","v":""},null,{"$f":"IFERROR(INDEX(Aktivitet,SMALL(IF(Mål=$F$2,ROW(Aktivitet)-MIN(ROW(Aktivitet))+1),ROWS($B$3:B51)))&CHAR(10),\"\")","v":""},null,{"$f":"IFERROR(INDEX(Aktivitet,SMALL(IF(Mål=$H$2,ROW(Aktivitet)-MIN(ROW(Aktivitet))+1),ROWS($B$3:B51)))&CHAR(10),\"\")","v":""}]
[null,{"$f":"IFERROR(INDEX(Aktivitet,SMALL(IF(Mål=$B$2,ROW(Aktivitet)-MIN(ROW(Aktivitet))+1),ROWS($B$3:B52)))&\" \"&CHAR(10)&(INDEX(Resultat,SMALL(IF(Mål=$B$2,ROW(Resultat)-MIN(ROW(Resultat))+1),ROWS($B$3:B52))))&CHAR(10),\"\")","v":""},null,{"$f":"IFERROR(INDEX(Aktivitet,SMALL(IF(Mål=$D$2,ROW(Aktivitet)-MIN(ROW(Aktivitet))+1),ROWS($B$3:B52)))&CHAR(10),\"\")","v":""},null,{"$f":"IFERROR(INDEX(Aktivitet,SMALL(IF(Mål=$F$2,ROW(Aktivitet)-MIN(ROW(Aktivitet))+1),ROWS($B$3:B52)))&CHAR(10),\"\")","v":""},null,{"$f":"IFERROR(INDEX(Aktivitet,SMALL(IF(Mål=$H$2,ROW(Aktivitet)-MIN(ROW(Aktivitet))+1),ROWS($B$3:B52)))&CHAR(10),\"\")","v":""}]
[null,{"$f":"IFERROR(INDEX(Aktivitet,SMALL(IF(Mål=$B$2,ROW(Aktivitet)-MIN(ROW(Aktivitet))+1),ROWS($B$3:B53)))&\" \"&CHAR(10)&(INDEX(Resultat,SMALL(IF(Mål=$B$2,ROW(Resultat)-MIN(ROW(Resultat))+1),ROWS($B$3:B53))))&CHAR(10),\"\")","v":""},null,{"$f":"IFERROR(INDEX(Aktivitet,SMALL(IF(Mål=$D$2,ROW(Aktivitet)-MIN(ROW(Aktivitet))+1),ROWS($B$3:B53)))&CHAR(10),\"\")","v":""},null,{"$f":"IFERROR(INDEX(Aktivitet,SMALL(IF(Mål=$F$2,ROW(Aktivitet)-MIN(ROW(Aktivitet))+1),ROWS($B$3:B53)))&CHAR(10),\"\")","v":""},null,{"$f":"IFERROR(INDEX(Aktivitet,SMALL(IF(Mål=$H$2,ROW(Aktivitet)-MIN(ROW(Aktivitet))+1),ROWS($B$3:B53)))&CHAR(10),\"\")","v":""}]
[null,{"$f":"IFERROR(INDEX(Aktivitet,SMALL(IF(Mål=$B$2,ROW(Aktivitet)-MIN(ROW(Aktivitet))+1),ROWS($B$3:B54)))&\" \"&CHAR(10)&(INDEX(Resultat,SMALL(IF(Mål=$B$2,ROW(Resultat)-MIN(ROW(Resultat))+1),ROWS($B$3:B54))))&CHAR(10),\"\")","v":""},null,{"$f":"IFERROR(INDEX(Aktivitet,SMALL(IF(Mål=$D$2,ROW(Aktivitet)-MIN(ROW(Aktivitet))+1),ROWS($B$3:B54)))&CHAR(10),\"\")","v":""},null,{"$f":"IFERROR(INDEX(Aktivitet,SMALL(IF(Mål=$F$2,ROW(Aktivitet)-MIN(ROW(Aktivitet))+1),ROWS($B$3:B54)))&CHAR(10),\"\")","v":""},null,{"$f":"IFERROR(INDEX(Aktivitet,SMALL(IF(Mål=$H$2,ROW(Aktivitet)-MIN(ROW(Aktivitet))+1),ROWS($B$3:B54)))&CHAR(10),\"\")","v":""}]
[null,{"$f":"IFERROR(INDEX(Aktivitet,SMALL(IF(Mål=$B$2,ROW(Aktivitet)-MIN(ROW(Aktivitet))+1),ROWS($B$3:B55)))&\" \"&CHAR(10)&(INDEX(Resultat,SMALL(IF(Mål=$B$2,ROW(Resultat)-MIN(ROW(Resultat))+1),ROWS($B$3:B55))))&CHAR(10),\"\")","v":""},null,{"$f":"IFERROR(INDEX(Aktivitet,SMALL(IF(Mål=$D$2,ROW(Aktivitet)-MIN(ROW(Aktivitet))+1),ROWS($B$3:B55)))&CHAR(10),\"\")","v":""},null,{"$f":"IFERROR(INDEX(Aktivitet,SMALL(IF(Mål=$F$2,ROW(Aktivitet)-MIN(ROW(Aktivitet))+1),ROWS($B$3:B55)))&CHAR(10),\"\")","v":""},null,{"$f":"IFERROR(INDEX(Aktivitet,SMALL(IF(Mål=$H$2,ROW(Aktivitet)-MIN(ROW(Aktivitet))+1),ROWS($B$3:B55)))&CHAR(10),\"\")","v":""}]
[null,{"$f":"IFERROR(INDEX(Aktivitet,SMALL(IF(Mål=$B$2,ROW(Aktivitet)-MIN(ROW(Aktivitet))+1),ROWS($B$3:B56)))&\" \"&CHAR(10)&(INDEX(Resultat,SMALL(IF(Mål=$B$2,ROW(Resultat)-MIN(ROW(Resultat))+1),ROWS($B$3:B56))))&CHAR(10),\"\")","v":""},null,{"$f":"IFERROR(INDEX(Aktivitet,SMALL(IF(Mål=$D$2,ROW(Aktivitet)-MIN(ROW(Aktivitet))+1),ROWS($B$3:B56)))&CHAR(10),\"\")","v":""},null,{"$f":"IFERROR(INDEX(Aktivitet,SMALL(IF(Mål=$F$2,ROW(Aktivitet)-MIN(ROW(Aktivitet))+1),ROWS($B$3:B56)))&CHAR(10),\"\")","v":""},null,{"$f":"IFERROR(INDEX(Aktivitet,SMALL(IF(Mål=$H$2,ROW(Aktivitet)-MIN(ROW(Aktivitet))+1),ROWS($B$3:B56)))&CHAR(10),\"\")","v":""}]
[null,{"$f":"IFERROR(INDEX(Aktivitet,SMALL(IF(Mål=$B$2,ROW(Aktivitet)-MIN(ROW(Aktivitet))+1),ROWS($B$3:B57)))&\" \"&CHAR(10)&(INDEX(Resultat,SMALL(IF(Mål=$B$2,ROW(Resultat)-MIN(ROW(Resultat))+1),ROWS($B$3:B57))))&CHAR(10),\"\")","v":""},null,{"$f":"IFERROR(INDEX(Aktivitet,SMALL(IF(Mål=$D$2,ROW(Aktivitet)-MIN(ROW(Aktivitet))+1),ROWS($B$3:B57)))&CHAR(10),\"\")","v":""},null,{"$f":"IFERROR(INDEX(Aktivitet,SMALL(IF(Mål=$F$2,ROW(Aktivitet)-MIN(ROW(Aktivitet))+1),ROWS($B$3:B57)))&CHAR(10),\"\")","v":""},null,{"$f":"IFERROR(INDEX(Aktivitet,SMALL(IF(Mål=$H$2,ROW(Aktivitet)-MIN(ROW(Aktivitet))+1),ROWS($B$3:B57)))&CHAR(10),\"\")","v":""}]
[null,{"$f":"IFERROR(INDEX(Aktivitet,SMALL(IF(Mål=$B$2,ROW(Aktivitet)-MIN(ROW(Aktivitet))+1),ROWS($B$3:B58)))&\" \"&CHAR(10)&(INDEX(Resultat,SMALL(IF(Mål=$B$2,ROW(Resultat)-MIN(ROW(Resultat))+1),ROWS($B$3:B58))))&CHAR(10),\"\")","v":""},null,{"$f":"IFERROR(INDEX(Aktivitet,SMALL(IF(Mål=$D$2,ROW(Aktivitet)-MIN(ROW(Aktivitet))+1),ROWS($B$3:B58)))&CHAR(10),\"\")","v":""},null,{"$f":"IFERROR(INDEX(Aktivitet,SMALL(IF(Mål=$F$2,ROW(Aktivitet)-MIN(ROW(Aktivitet))+1),ROWS($B$3:B58)))&CHAR(10),\"\")","v":""},null,{"$f":"IFERROR(INDEX(Aktivitet,SMALL(IF(Mål=$H$2,ROW(Aktivitet)-MIN(ROW(Aktivitet))+1),ROWS($B$3:B58)))&CHAR(10),\"\")","v":""}]
[null,{"$f":"IFERROR(INDEX(Aktivitet,SMALL(IF(Mål=$B$2,ROW(Aktivitet)-MIN(ROW(Aktivitet))+1),ROWS($B$3:B59)))&\" \"&CHAR(10)&(INDEX(Resultat,SMALL(IF(Mål=$B$2,ROW(Resultat)-MIN(ROW(Resultat))+1),ROWS($B$3:B59))))&CHAR(10),\"\")","v":""},null,{"$f":"IFERROR(INDEX(Aktivitet,SMALL(IF(Mål=$D$2,ROW(Aktivitet)-MIN(ROW(Aktivitet))+1),ROWS($B$3:B59)))&CHAR(10),\"\")","v":""},null,{"$f":"IFERROR(INDEX(Aktivitet,SMALL(IF(Mål=$F$2,ROW(Aktivitet)-MIN(ROW(Aktivitet))+1),ROWS($B$3:B59)))&CHAR(10),\"\")","v":""},null,{"$f":"IFERROR(INDEX(Aktivitet,SMALL(IF(Mål=$H$2,ROW(Aktivitet)-MIN(ROW(Aktivitet))+1),ROWS($B$3:B59)))&CHAR(10),\"\")","v":""}]
[null,{"$f":"IFERROR(INDEX(Aktivitet,SMALL(IF(Mål=$B$2,ROW(Aktivitet)-MIN(ROW(Aktivitet))+1),ROWS($B$3:B60)))&\" \"&CHAR(10)&(INDEX(Resultat,SMALL(IF(Mål=$B$2,ROW(Resultat)-MIN(ROW(Resultat))+1),ROWS($B$3:B60))))&CHAR(10),\"\")","v":""},null,{"$f":"IFERROR(INDEX(Aktivitet,SMALL(IF(Mål=$D$2,ROW(Aktivitet)-MIN(ROW(Aktivitet))+1),ROWS($B$3:B60)))&CHAR(10),\"\")","v":""},null,{"$f":"IFERROR(INDEX(Aktivitet,SMALL(IF(Mål=$F$2,ROW(Aktivitet)-MIN(ROW(Aktivitet))+1),ROWS($B$3:B60)))&CHAR(10),\"\")","v":""},null,{"$f":"IFERROR(INDEX(Aktivitet,SMALL(IF(Mål=$H$2,ROW(Aktivitet)-MIN(ROW(Aktivitet))+1),ROWS($B$3:B60)))&CHAR(10),\"\")","v":""}]
[null,{"$f":"IFERROR(INDEX(Aktivitet,SMALL(IF(Mål=$B$2,ROW(Aktivitet)-MIN(ROW(Aktivitet))+1),ROWS($B$3:B61)))&\" \"&CHAR(10)&(INDEX(Resultat,SMALL(IF(Mål=$B$2,ROW(Resultat)-MIN(ROW(Resultat))+1),ROWS($B$3:B61))))&CHAR(10),\"\")","v":""},null,{"$f":"IFERROR(INDEX(Aktivitet,SMALL(IF(Mål=$D$2,ROW(Aktivitet)-MIN(ROW(Aktivitet))+1),ROWS($B$3:B61)))&CHAR(10),\"\")","v":""},null,{"$f":"IFERROR(INDEX(Aktivitet,SMALL(IF(Mål=$F$2,ROW(Aktivitet)-MIN(ROW(Aktivitet))+1),ROWS($B$3:B61)))&CHAR(10),\"\")","v":""},null,{"$f":"IFERROR(INDEX(Aktivitet,SMALL(IF(Mål=$H$2,ROW(Aktivitet)-MIN(ROW(Aktivitet))+1),ROWS($B$3:B61)))&CHAR(10),\"\")","v":""}]
[null,{"$f":"IFERROR(INDEX(Aktivitet,SMALL(IF(Mål=$B$2,ROW(Aktivitet)-MIN(ROW(Aktivitet))+1),ROWS($B$3:B62)))&\" \"&CHAR(10)&(INDEX(Resultat,SMALL(IF(Mål=$B$2,ROW(Resultat)-MIN(ROW(Resultat))+1),ROWS($B$3:B62))))&CHAR(10),\"\")","v":""},null,{"$f":"IFERROR(INDEX(Aktivitet,SMALL(IF(Mål=$D$2,ROW(Aktivitet)-MIN(ROW(Aktivitet))+1),ROWS($B$3:B62)))&CHAR(10),\"\")","v":""},null,{"$f":"IFERROR(INDEX(Aktivitet,SMALL(IF(Mål=$F$2,ROW(Aktivitet)-MIN(ROW(Aktivitet))+1),ROWS($B$3:B62)))&CHAR(10),\"\")","v":""},null,{"$f":"IFERROR(INDEX(Aktivitet,SMALL(IF(Mål=$H$2,ROW(Aktivitet)-MIN(ROW(Aktivitet))+1),ROWS($B$3:B62)))&CHAR(10),\"\")","v":""}]
[null,{"$f":"IFERROR(INDEX(Aktivitet,SMALL(IF(Mål=$B$2,ROW(Aktivitet)-MIN(ROW(Aktivitet))+1),ROWS($B$3:B63)))&\" \"&CHAR(10)&(INDEX(Resultat,SMALL(IF(Mål=$B$2,ROW(Resultat)-MIN(ROW(Resultat))+1),ROWS($B$3:B63))))&CHAR(10),\"\")","v":""},null,{"$f":"IFERROR(INDEX(Aktivitet,SMALL(IF(Mål=$D$2,ROW(Aktivitet)-MIN(ROW(Aktivitet))+1),ROWS($B$3:B63)))&CHAR(10),\"\")","v":""},null,{"$f":"IFERROR(INDEX(Aktivitet,SMALL(IF(Mål=$F$2,ROW(Aktivitet)-MIN(ROW(Aktivitet))+1),ROWS($B$3:B63)))&CHAR(10),\"\")","v":""},null,{"$f":"IFERROR(INDEX(Aktivitet,SMALL(IF(Mål=$H$2,ROW(Aktivitet)-MIN(ROW(Aktivitet))+1),ROWS($B$3:B63)))&CHAR(10),\"\")","v":""}]
[null,{"$f":"IFERROR(INDEX(Aktivitet,SMALL(IF(Mål=$B$2,ROW(Aktivitet)-MIN(ROW(Aktivitet))+1),ROWS($B$3:B64)))&\" \"&CHAR(10)&(INDEX(Resultat,SMALL(IF(Mål=$B$2,ROW(Resultat)-MIN(ROW(Resultat))+1),ROWS($B$3:B64))))&CHAR(10),\"\")","v":""},null,{"$f":"IFERROR(INDEX(Aktivitet,SMALL(IF(Mål=$D$2,ROW(Aktivitet)-MIN(ROW(Aktivitet))+1),ROWS($B$3:B64)))&CHAR(10),\"\")","v":""},null,{"$f":"IFERROR(INDEX(Aktivitet,SMALL(IF(Mål=$F$2,ROW(Aktivitet)-MIN(ROW(Aktivitet))+1),ROWS($B$3:B64)))&CHAR(10),\"\")","v":""},null,{"$f":"IFERROR(INDEX(Aktivitet,SMALL(IF(Mål=$H$2,ROW(Aktivitet)-MIN(ROW(Aktivitet))+1),ROWS($B$3:B64)))&CHAR(10),\"\")","v":""}]
[null,{"$f":"IFERROR(INDEX(Aktivitet,SMALL(IF(Mål=$B$2,ROW(Aktivitet)-MIN(ROW(Aktivitet))+1),ROWS($B$3:B65)))&\" \"&CHAR(10)&(INDEX(Resultat,SMALL(IF(Mål=$B$2,ROW(Resultat)-MIN(ROW(Resultat))+1),ROWS($B$3:B65))))&CHAR(10),\"\")","v":""},null,{"$f":"IFERROR(INDEX(Aktivitet,SMALL(IF(Mål=$D$2,ROW(Aktivitet)-MIN(ROW(Aktivitet))+1),ROWS($B$3:B65)))&CHAR(10),\"\")","v":""},null,{"$f":"IFERROR(INDEX(Aktivitet,SMALL(IF(Mål=$F$2,ROW(Aktivitet)-MIN(ROW(Aktivitet))+1),ROWS($B$3:B65)))&CHAR(10),\"\")","v":""},null,{"$f":"IFERROR(INDEX(Aktivitet,SMALL(IF(Mål=$H$2,ROW(Aktivitet)-MIN(ROW(Aktivitet))+1),ROWS($B$3:B65)))&CHAR(10),\"\")","v":""}]
[null,{"$f":"IFERROR(INDEX(Aktivitet,SMALL(IF(Mål=$B$2,ROW(Aktivitet)-MIN(ROW(Aktivitet))+1),ROWS($B$3:B66)))&\" \"&CHAR(10)&(INDEX(Resultat,SMALL(IF(Mål=$B$2,ROW(Resultat)-MIN(ROW(Resultat))+1),ROWS($B$3:B66))))&CHAR(10),\"\")","v":""},null,{"$f":"IFERROR(INDEX(Aktivitet,SMALL(IF(Mål=$D$2,ROW(Aktivitet)-MIN(ROW(Aktivitet))+1),ROWS($B$3:B66)))&CHAR(10),\"\")","v":""},null,{"$f":"IFERROR(INDEX(Aktivitet,SMALL(IF(Mål=$F$2,ROW(Aktivitet)-MIN(ROW(Aktivitet))+1),ROWS($B$3:B66)))&CHAR(10),\"\")","v":""},null,{"$f":"IFERROR(INDEX(Aktivitet,SMALL(IF(Mål=$H$2,ROW(Aktivitet)-MIN(ROW(Aktivitet))+1),ROWS($B$3:B66)))&CHAR(10),\"\")","v":""}]
[null,{"$f":"IFERROR(INDEX(Aktivitet,SMALL(IF(Mål=$B$2,ROW(Aktivitet)-MIN(ROW(Aktivitet))+1),ROWS($B$3:B67)))&\" \"&CHAR(10)&(INDEX(Resultat,SMALL(IF(Mål=$B$2,ROW(Resultat)-MIN(ROW(Resultat))+1),ROWS($B$3:B67))))&CHAR(10),\"\")","v":""},null,{"$f":"IFERROR(INDEX(Aktivitet,SMALL(IF(Mål=$D$2,ROW(Aktivitet)-MIN(ROW(Aktivitet))+1),ROWS($B$3:B67)))&CHAR(10),\"\")","v":""},null,{"$f":"IFERROR(INDEX(Aktivitet,SMALL(IF(Mål=$F$2,ROW(Aktivitet)-MIN(ROW(Aktivitet))+1),ROWS($B$3:B67)))&CHAR(10),\"\")","v":""},null,{"$f":"IFERROR(INDEX(Aktivitet,SMALL(IF(Mål=$H$2,ROW(Aktivitet)-MIN(ROW(Aktivitet))+1),ROWS($B$3:B67)))&CHAR(10),\"\")","v":""}]
[null,{"$f":"IFERROR(INDEX(Aktivitet,SMALL(IF(Mål=$B$2,ROW(Aktivitet)-MIN(ROW(Aktivitet))+1),ROWS($B$3:B68)))&\" \"&CHAR(10)&(INDEX(Resultat,SMALL(IF(Mål=$B$2,ROW(Resultat)-MIN(ROW(Resultat))+1),ROWS($B$3:B68))))&CHAR(10),\"\")","v":""},null,{"$f":"IFERROR(INDEX(Aktivitet,SMALL(IF(Mål=$D$2,ROW(Aktivitet)-MIN(ROW(Aktivitet))+1),ROWS($B$3:B68)))&CHAR(10),\"\")","v":""},null,{"$f":"IFERROR(INDEX(Aktivitet,SMALL(IF(Mål=$F$2,ROW(Aktivitet)-MIN(ROW(Aktivitet))+1),ROWS($B$3:B68)))&CHAR(10),\"\")","v":""},null,{"$f":"IFERROR(INDEX(Aktivitet,SMALL(IF(Mål=$H$2,ROW(Aktivitet)-MIN(ROW(Aktivitet))+1),ROWS($B$3:B68)))&CHAR(10),\"\")","v":""}]
[null,{"$f":"IFERROR(INDEX(Aktivitet,SMALL(IF(Mål=$B$2,ROW(Aktivitet)-MIN(ROW(Aktivitet))+1),ROWS($B$3:B69)))&\" \"&CHAR(10)&(INDEX(Resultat,SMALL(IF(Mål=$B$2,ROW(Resultat)-MIN(ROW(Resultat))+1),ROWS($B$3:B69))))&CHAR(10),\"\")","v":""},null,{"$f":"IFERROR(INDEX(Aktivitet,SMALL(IF(Mål=$D$2,ROW(Aktivitet)-MIN(ROW(Aktivitet))+1),ROWS($B$3:B69)))&CHAR(10),\"\")","v":""},null,{"$f":"IFERROR(INDEX(Aktivitet,SMALL(IF(Mål=$F$2,ROW(Aktivitet)-MIN(ROW(Aktivitet))+1),ROWS($B$3:B69)))&CHAR(10),\"\")","v":""},null,{"$f":"IFERROR(INDEX(Aktivitet,SMALL(IF(Mål=$H$2,ROW(Aktivitet)-MIN(ROW(Aktivitet))+1),ROWS($B$3:B69)))&CHAR(10),\"\")","v":""}]
[null,{"$f":"IFERROR(INDEX(Aktivitet,SMALL(IF(Mål=$B$2,ROW(Aktivitet)-MIN(ROW(Aktivitet))+1),ROWS($B$3:B70)))&\" \"&CHAR(10)&(INDEX(Resultat,SMALL(IF(Mål=$B$2,ROW(Resultat)-MIN(ROW(Resultat))+1),ROWS($B$3:B70))))&CHAR(10),\"\")","v":""},null,{"$f":"IFERROR(INDEX(Aktivitet,SMALL(IF(Mål=$D$2,ROW(Aktivitet)-MIN(ROW(Aktivitet))+1),ROWS($B$3:B70)))&CHAR(10),\"\")","v":""},null,{"$f":"IFERROR(INDEX(Aktivitet,SMALL(IF(Mål=$F$2,ROW(Aktivitet)-MIN(ROW(Aktivitet))+1),ROWS($B$3:B70)))&CHAR(10),\"\")","v":""},null,{"$f":"IFERROR(INDEX(Aktivitet,SMALL(IF(Mål=$H$2,ROW(Aktivitet)-MIN(ROW(Aktivitet))+1),ROWS($B$3:B70)))&CHAR(10),\"\")","v":""}]
[null,{"$f":"IFERROR(INDEX(Aktivitet,SMALL(IF(Mål=$B$2,ROW(Aktivitet)-MIN(ROW(Aktivitet))+1),ROWS($B$3:B71)))&\" \"&CHAR(10)&(INDEX(Resultat,SMALL(IF(Mål=$B$2,ROW(Resultat)-MIN(ROW(Resultat))+1),ROWS($B$3:B71))))&CHAR(10),\"\")","v":""},null,{"$f":"IFERROR(INDEX(Aktivitet,SMALL(IF(Mål=$D$2,ROW(Aktivitet)-MIN(ROW(Aktivitet))+1),ROWS($B$3:B71)))&CHAR(10),\"\")","v":""},null,{"$f":"IFERROR(INDEX(Aktivitet,SMALL(IF(Mål=$F$2,ROW(Aktivitet)-MIN(ROW(Aktivitet))+1),ROWS($B$3:B71)))&CHAR(10),\"\")","v":""},null,{"$f":"IFERROR(INDEX(Aktivitet,SMALL(IF(Mål=$H$2,ROW(Aktivitet)-MIN(ROW(Aktivitet))+1),ROWS($B$3:B71)))&CHAR(10),\"\")","v":""}]
[null,{"$f":"IFERROR(INDEX(Aktivitet,SMALL(IF(Mål=$B$2,ROW(Aktivitet)-MIN(ROW(Aktivitet))+1),ROWS($B$3:B72)))&\" \"&CHAR(10)&(INDEX(Resultat,SMALL(IF(Mål=$B$2,ROW(Resultat)-MIN(ROW(Resultat))+1),ROWS($B$3:B72))))&CHAR(10),\"\")","v":""},null,{"$f":"IFERROR(INDEX(Aktivitet,SMALL(IF(Mål=$D$2,ROW(Aktivitet)-MIN(ROW(Aktivitet))+1),ROWS($B$3:B72)))&CHAR(10),\"\")","v":""},null,{"$f":"IFERROR(INDEX(Aktivitet,SMALL(IF(Mål=$F$2,ROW(Aktivitet)-MIN(ROW(Aktivitet))+1),ROWS($B$3:B72)))&CHAR(10),\"\")","v":""},null,{"$f":"IFERROR(INDEX(Aktivitet,SMALL(IF(Mål=$H$2,ROW(Aktivitet)-MIN(ROW(Aktivitet))+1),ROWS($B$3:B72)))&CHAR(10),\"\")","v":""}]
[null,{"$f":"IFERROR(INDEX(Aktivitet,SMALL(IF(Mål=$B$2,ROW(Aktivitet)-MIN(ROW(Aktivitet))+1),ROWS($B$3:B73)))&\" \"&CHAR(10)&(INDEX(Resultat,SMALL(IF(Mål=$B$2,ROW(Resultat)-MIN(ROW(Resultat))+1),ROWS($B$3:B73))))&CHAR(10),\"\")","v":""},null,{"$f":"IFERROR(INDEX(Aktivitet,SMALL(IF(Mål=$D$2,ROW(Aktivitet)-MIN(ROW(Aktivitet))+1),ROWS($B$3:B73)))&CHAR(10),\"\")","v":""},null,{"$f":"IFERROR(INDEX(Aktivitet,SMALL(IF(Mål=$F$2,ROW(Aktivitet)-MIN(ROW(Aktivitet))+1),ROWS($B$3:B73)))&CHAR(10),\"\")","v":""},null,{"$f":"IFERROR(INDEX(Aktivitet,SMALL(IF(Mål=$H$2,ROW(Aktivitet)-MIN(ROW(Aktivitet))+1),ROWS($B$3:B73)))&CHAR(10),\"\")","v":""}]
[null,{"$f":"IFERROR(INDEX(Aktivitet,SMALL(IF(Mål=$B$2,ROW(Aktivitet)-MIN(ROW(Aktivitet))+1),ROWS($B$3:B74)))&\" \"&CHAR(10)&(INDEX(Resultat,SMALL(IF(Mål=$B$2,ROW(Resultat)-MIN(ROW(Resultat))+1),ROWS($B$3:B74))))&CHAR(10),\"\")","v":""},null,{"$f":"IFERROR(INDEX(Aktivitet,SMALL(IF(Mål=$D$2,ROW(Aktivitet)-MIN(ROW(Aktivitet))+1),ROWS($B$3:B74)))&CHAR(10),\"\")","v":""},null,{"$f":"IFERROR(INDEX(Aktivitet,SMALL(IF(Mål=$F$2,ROW(Aktivitet)-MIN(ROW(Aktivitet))+1),ROWS($B$3:B74)))&CHAR(10),\"\")","v":""},null,{"$f":"IFERROR(INDEX(Aktivitet,SMALL(IF(Mål=$H$2,ROW(Aktivitet)-MIN(ROW(Aktivitet))+1),ROWS($B$3:B74)))&CHAR(10),\"\")","v":""}]
[null,{"$f":"IFERROR(INDEX(Aktivitet,SMALL(IF(Mål=$B$2,ROW(Aktivitet)-MIN(ROW(Aktivitet))+1),ROWS($B$3:B75)))&\" \"&CHAR(10)&(INDEX(Resultat,SMALL(IF(Mål=$B$2,ROW(Resultat)-MIN(ROW(Resultat))+1),ROWS($B$3:B75))))&CHAR(10),\"\")","v":""},null,{"$f":"IFERROR(INDEX(Aktivitet,SMALL(IF(Mål=$D$2,ROW(Aktivitet)-MIN(ROW(Aktivitet))+1),ROWS($B$3:B75)))&CHAR(10),\"\")","v":""},null,{"$f":"IFERROR(INDEX(Aktivitet,SMALL(IF(Mål=$F$2,ROW(Aktivitet)-MIN(ROW(Aktivitet))+1),ROWS($B$3:B75)))&CHAR(10),\"\")","v":""},null,{"$f":"IFERROR(INDEX(Aktivitet,SMALL(IF(Mål=$H$2,ROW(Aktivitet)-MIN(ROW(Aktivitet))+1),ROWS($B$3:B75)))&CHAR(10),\"\")","v":""}]
[null,{"$f":"IFERROR(INDEX(Aktivitet,SMALL(IF(Mål=$B$2,ROW(Aktivitet)-MIN(ROW(Aktivitet))+1),ROWS($B$3:B76)))&\" \"&CHAR(10)&(INDEX(Resultat,SMALL(IF(Mål=$B$2,ROW(Resultat)-MIN(ROW(Resultat))+1),ROWS($B$3:B76))))&CHAR(10),\"\")","v":""},null,{"$f":"IFERROR(INDEX(Aktivitet,SMALL(IF(Mål=$D$2,ROW(Aktivitet)-MIN(ROW(Aktivitet))+1),ROWS($B$3:B76)))&CHAR(10),\"\")","v":""},null,{"$f":"IFERROR(INDEX(Aktivitet,SMALL(IF(Mål=$F$2,ROW(Aktivitet)-MIN(ROW(Aktivitet))+1),ROWS($B$3:B76)))&CHAR(10),\"\")","v":""},null,{"$f":"IFERROR(INDEX(Aktivitet,SMALL(IF(Mål=$H$2,ROW(Aktivitet)-MIN(ROW(Aktivitet))+1),ROWS($B$3:B76)))&CHAR(10),\"\")","v":""}]
[null,{"$f":"IFERROR(INDEX(Aktivitet,SMALL(IF(Mål=$B$2,ROW(Aktivitet)-MIN(ROW(Aktivitet))+1),ROWS($B$3:B77)))&\" \"&CHAR(10)&(INDEX(Resultat,SMALL(IF(Mål=$B$2,ROW(Resultat)-MIN(ROW(Resultat))+1),ROWS($B$3:B77))))&CHAR(10),\"\")","v":""},null,{"$f":"IFERROR(INDEX(Aktivitet,SMALL(IF(Mål=$D$2,ROW(Aktivitet)-MIN(ROW(Aktivitet))+1),ROWS($B$3:B77)))&CHAR(10),\"\")","v":""},null,{"$f":"IFERROR(INDEX(Aktivitet,SMALL(IF(Mål=$F$2,ROW(Aktivitet)-MIN(ROW(Aktivitet))+1),ROWS($B$3:B77)))&CHAR(10),\"\")","v":""},null,{"$f":"IFERROR(INDEX(Aktivitet,SMALL(IF(Mål=$H$2,ROW(Aktivitet)-MIN(ROW(Aktivitet))+1),ROWS($B$3:B77)))&CHAR(10),\"\")","v":""}]
[null,{"$f":"IFERROR(INDEX(Aktivitet,SMALL(IF(Mål=$B$2,ROW(Aktivitet)-MIN(ROW(Aktivitet))+1),ROWS($B$3:B78)))&\" \"&CHAR(10)&(INDEX(Resultat,SMALL(IF(Mål=$B$2,ROW(Resultat)-MIN(ROW(Resultat))+1),ROWS($B$3:B78))))&CHAR(10),\"\")","v":""},null,{"$f":"IFERROR(INDEX(Aktivitet,SMALL(IF(Mål=$D$2,ROW(Aktivitet)-MIN(ROW(Aktivitet))+1),ROWS($B$3:B78)))&CHAR(10),\"\")","v":""},null,{"$f":"IFERROR(INDEX(Aktivitet,SMALL(IF(Mål=$F$2,ROW(Aktivitet)-MIN(ROW(Aktivitet))+1),ROWS($B$3:B78)))&CHAR(10),\"\")","v":""},null,{"$f":"IFERROR(INDEX(Aktivitet,SMALL(IF(Mål=$H$2,ROW(Aktivitet)-MIN(ROW(Aktivitet))+1),ROWS($B$3:B78)))&CHAR(10),\"\")","v":""}]
[null,{"$f":"IFERROR(INDEX(Aktivitet,SMALL(IF(Mål=$B$2,ROW(Aktivitet)-MIN(ROW(Aktivitet))+1),ROWS($B$3:B79)))&\" \"&CHAR(10)&(INDEX(Resultat,SMALL(IF(Mål=$B$2,ROW(Resultat)-MIN(ROW(Resultat))+1),ROWS($B$3:B79))))&CHAR(10),\"\")","v":""},null,{"$f":"IFERROR(INDEX(Aktivitet,SMALL(IF(Mål=$D$2,ROW(Aktivitet)-MIN(ROW(Aktivitet))+1),ROWS($B$3:B79)))&CHAR(10),\"\")","v":""},null,{"$f":"IFERROR(INDEX(Aktivitet,SMALL(IF(Mål=$F$2,ROW(Aktivitet)-MIN(ROW(Aktivitet))+1),ROWS($B$3:B79)))&CHAR(10),\"\")","v":""},null,{"$f":"IFERROR(INDEX(Aktivitet,SMALL(IF(Mål=$H$2,ROW(Aktivitet)-MIN(ROW(Aktivitet))+1),ROWS($B$3:B79)))&CHAR(10),\"\")","v":""}]
[null,{"$f":"IFERROR(INDEX(Aktivitet,SMALL(IF(Mål=$B$2,ROW(Aktivitet)-MIN(ROW(Aktivitet))+1),ROWS($B$3:B80)))&\" \"&CHAR(10)&(INDEX(Resultat,SMALL(IF(Mål=$B$2,ROW(Resultat)-MIN(ROW(Resultat))+1),ROWS($B$3:B80))))&CHAR(10),\"\")","v":""},null,{"$f":"IFERROR(INDEX(Aktivitet,SMALL(IF(Mål=$D$2,ROW(Aktivitet)-MIN(ROW(Aktivitet))+1),ROWS($B$3:B80)))&CHAR(10),\"\")","v":""},null,{"$f":"IFERROR(INDEX(Aktivitet,SMALL(IF(Mål=$F$2,ROW(Aktivitet)-MIN(ROW(Aktivitet))+1),ROWS($B$3:B80)))&CHAR(10),\"\")","v":""},null,{"$f":"IFERROR(INDEX(Aktivitet,SMALL(IF(Mål=$H$2,ROW(Aktivitet)-MIN(ROW(Aktivitet))+1),ROWS($B$3:B80)))&CHAR(10),\"\")","v":""}]
[null,{"$f":"IFERROR(INDEX(Aktivitet,SMALL(IF(Mål=$B$2,ROW(Aktivitet)-MIN(ROW(Aktivitet))+1),ROWS($B$3:B81)))&\" \"&CHAR(10)&(INDEX(Resultat,SMALL(IF(Mål=$B$2,ROW(Resultat)-MIN(ROW(Resultat))+1),ROWS($B$3:B81))))&CHAR(10),\"\")","v":""},null,{"$f":"IFERROR(INDEX(Aktivitet,SMALL(IF(Mål=$D$2,ROW(Aktivitet)-MIN(ROW(Aktivitet))+1),ROWS($B$3:B81)))&CHAR(10),\"\")","v":""},null,{"$f":"IFERROR(INDEX(Aktivitet,SMALL(IF(Mål=$F$2,ROW(Aktivitet)-MIN(ROW(Aktivitet))+1),ROWS($B$3:B81)))&CHAR(10),\"\")","v":""},null,{"$f":"IFERROR(INDEX(Aktivitet,SMALL(IF(Mål=$H$2,ROW(Aktivitet)-MIN(ROW(Aktivitet))+1),ROWS($B$3:B81)))&CHAR(10),\"\")","v":""}]
[null,{"$f":"IFERROR(INDEX(Aktivitet,SMALL(IF(Mål=$B$2,ROW(Aktivitet)-MIN(ROW(Aktivitet))+1),ROWS($B$3:B82)))&\" \"&CHAR(10)&(INDEX(Resultat,SMALL(IF(Mål=$B$2,ROW(Resultat)-MIN(ROW(Resultat))+1),ROWS($B$3:B82))))&CHAR(10),\"\")","v":""},null,{"$f":"IFERROR(INDEX(Aktivitet,SMALL(IF(Mål=$D$2,ROW(Aktivitet)-MIN(ROW(Aktivitet))+1),ROWS($B$3:B82)))&CHAR(10),\"\")","v":""},null,{"$f":"IFERROR(INDEX(Aktivitet,SMALL(IF(Mål=$F$2,ROW(Aktivitet)-MIN(ROW(Aktivitet))+1),ROWS($B$3:B82)))&CHAR(10),\"\")","v":""},null,{"$f":"IFERROR(INDEX(Aktivitet,SMALL(IF(Mål=$H$2,ROW(Aktivitet)-MIN(ROW(Aktivitet))+1),ROWS($B$3:B82)))&CHAR(10),\"\")","v":""}]
[null,{"$f":"IFERROR(INDEX(Aktivitet,SMALL(IF(Mål=$B$2,ROW(Aktivitet)-MIN(ROW(Aktivitet))+1),ROWS($B$3:B83)))&\" \"&CHAR(10)&(INDEX(Resultat,SMALL(IF(Mål=$B$2,ROW(Resultat)-MIN(ROW(Resultat))+1),ROWS($B$3:B83))))&CHAR(10),\"\")","v":""},null,{"$f":"IFERROR(INDEX(Aktivitet,SMALL(IF(Mål=$D$2,ROW(Aktivitet)-MIN(ROW(Aktivitet))+1),ROWS($B$3:B83)))&CHAR(10),\"\")","v":""},null,{"$f":"IFERROR(INDEX(Aktivitet,SMALL(IF(Mål=$F$2,ROW(Aktivitet)-MIN(ROW(Aktivitet))+1),ROWS($B$3:B83)))&CHAR(10),\"\")","v":""},null,{"$f":"IFERROR(INDEX(Aktivitet,SMALL(IF(Mål=$H$2,ROW(Aktivitet)-MIN(ROW(Aktivitet))+1),ROWS($B$3:B83)))&CHAR(10),\"\")","v":""}]
[null,{"$f":"IFERROR(INDEX(Aktivitet,SMALL(IF(Mål=$B$2,ROW(Aktivitet)-MIN(ROW(Aktivitet))+1),ROWS($B$3:B84)))&\" \"&CHAR(10)&(INDEX(Resultat,SMALL(IF(Mål=$B$2,ROW(Resultat)-MIN(ROW(Resultat))+1),ROWS($B$3:B84))))&CHAR(10),\"\")","v":""},null,{"$f":"IFERROR(INDEX(Aktivitet,SMALL(IF(Mål=$D$2,ROW(Aktivitet)-MIN(ROW(Aktivitet))+1),ROWS($B$3:B84)))&CHAR(10),\"\")","v":""},null,{"$f":"IFERROR(INDEX(Aktivitet,SMALL(IF(Mål=$F$2,ROW(Aktivitet)-MIN(ROW(Aktivitet))+1),ROWS($B$3:B84)))&CHAR(10),\"\")","v":""},null,{"$f":"IFERROR(INDEX(Aktivitet,SMALL(IF(Mål=$H$2,ROW(Aktivitet)-MIN(ROW(Aktivitet))+1),ROWS($B$3:B84)))&CHAR(10),\"\")","v":""}]
[null,{"$f":"IFERROR(INDEX(Aktivitet,SMALL(IF(Mål=$B$2,ROW(Aktivitet)-MIN(ROW(Aktivitet))+1),ROWS($B$3:B85)))&\" \"&CHAR(10)&(INDEX(Resultat,SMALL(IF(Mål=$B$2,ROW(Resultat)-MIN(ROW(Resultat))+1),ROWS($B$3:B85))))&CHAR(10),\"\")","v":""},null,{"$f":"IFERROR(INDEX(Aktivitet,SMALL(IF(Mål=$D$2,ROW(Aktivitet)-MIN(ROW(Aktivitet))+1),ROWS($B$3:B85)))&CHAR(10),\"\")","v":""},null,{"$f":"IFERROR(INDEX(Aktivitet,SMALL(IF(Mål=$F$2,ROW(Aktivitet)-MIN(ROW(Aktivitet))+1),ROWS($B$3:B85)))&CHAR(10),\"\")","v":""},null,{"$f":"IFERROR(INDEX(Aktivitet,SMALL(IF(Mål=$H$2,ROW(Aktivitet)-MIN(ROW(Aktivitet))+1),ROWS($B$3:B85)))&CHAR(10),\"\")","v":""}]
[null,{"$f":"IFERROR(INDEX(Aktivitet,SMALL(IF(Mål=$B$2,ROW(Aktivitet)-MIN(ROW(Aktivitet))+1),ROWS($B$3:B86)))&\" \"&CHAR(10)&(INDEX(Resultat,SMALL(IF(Mål=$B$2,ROW(Resultat)-MIN(ROW(Resultat))+1),ROWS($B$3:B86))))&CHAR(10),\"\")","v":""},null,{"$f":"IFERROR(INDEX(Aktivitet,SMALL(IF(Mål=$D$2,ROW(Aktivitet)-MIN(ROW(Aktivitet))+1),ROWS($B$3:B86)))&CHAR(10),\"\")","v":""},null,{"$f":"IFERROR(INDEX(Aktivitet,SMALL(IF(Mål=$F$2,ROW(Aktivitet)-MIN(ROW(Aktivitet))+1),ROWS($B$3:B86)))&CHAR(10),\"\")","v":""},null,{"$f":"IFERROR(INDEX(Aktivitet,SMALL(IF(Mål=$H$2,ROW(Aktivitet)-MIN(ROW(Aktivitet))+1),ROWS($B$3:B86)))&CHAR(10),\"\")","v":""}]
[null,{"$f":"IFERROR(INDEX(Aktivitet,SMALL(IF(Mål=$B$2,ROW(Aktivitet)-MIN(ROW(Aktivitet))+1),ROWS($B$3:B87)))&\" \"&CHAR(10)&(INDEX(Resultat,SMALL(IF(Mål=$B$2,ROW(Resultat)-MIN(ROW(Resultat))+1),ROWS($B$3:B87))))&CHAR(10),\"\")","v":""},null,{"$f":"IFERROR(INDEX(Aktivitet,SMALL(IF(Mål=$D$2,ROW(Aktivitet)-MIN(ROW(Aktivitet))+1),ROWS($B$3:B87)))&CHAR(10),\"\")","v":""},null,{"$f":"IFERROR(INDEX(Aktivitet,SMALL(IF(Mål=$F$2,ROW(Aktivitet)-MIN(ROW(Aktivitet))+1),ROWS($B$3:B87)))&CHAR(10),\"\")","v":""},null,{"$f":"IFERROR(INDEX(Aktivitet,SMALL(IF(Mål=$H$2,ROW(Aktivitet)-MIN(ROW(Aktivitet))+1),ROWS($B$3:B87)))&CHAR(10),\"\")","v":""}]
[null,{"$f":"IFERROR(INDEX(Aktivitet,SMALL(IF(Mål=$B$2,ROW(Aktivitet)-MIN(ROW(Aktivitet))+1),ROWS($B$3:B88)))&\" \"&CHAR(10)&(INDEX(Resultat,SMALL(IF(Mål=$B$2,ROW(Resultat)-MIN(ROW(Resultat))+1),ROWS($B$3:B88))))&CHAR(10),\"\")","v":""},null,{"$f":"IFERROR(INDEX(Aktivitet,SMALL(IF(Mål=$D$2,ROW(Aktivitet)-MIN(ROW(Aktivitet))+1),ROWS($B$3:B88)))&CHAR(10),\"\")","v":""},null,{"$f":"IFERROR(INDEX(Aktivitet,SMALL(IF(Mål=$F$2,ROW(Aktivitet)-MIN(ROW(Aktivitet))+1),ROWS($B$3:B88)))&CHAR(10),\"\")","v":""},null,{"$f":"IFERROR(INDEX(Aktivitet,SMALL(IF(Mål=$H$2,ROW(Aktivitet)-MIN(ROW(Aktivitet))+1),ROWS($B$3:B88)))&CHAR(10),\"\")","v":""}]
[null,{"$f":"IFERROR(INDEX(Aktivitet,SMALL(IF(Mål=$B$2,ROW(Aktivitet)-MIN(ROW(Aktivitet))+1),ROWS($B$3:B89)))&\" \"&CHAR(10)&(INDEX(Resultat,SMALL(IF(Mål=$B$2,ROW(Resultat)-MIN(ROW(Resultat))+1),ROWS($B$3:B89))))&CHAR(10),\"\")","v":""},null,{"$f":"IFERROR(INDEX(Aktivitet,SMALL(IF(Mål=$D$2,ROW(Aktivitet)-MIN(ROW(Aktivitet))+1),ROWS($B$3:B89)))&CHAR(10),\"\")","v":""},null,{"$f":"IFERROR(INDEX(Aktivitet,SMALL(IF(Mål=$F$2,ROW(Aktivitet)-MIN(ROW(Aktivitet))+1),ROWS($B$3:B89)))&CHAR(10),\"\")","v":""},null,{"$f":"IFERROR(INDEX(Aktivitet,SMALL(IF(Mål=$H$2,ROW(Aktivitet)-MIN(ROW(Aktivitet))+1),ROWS($B$3:B89)))&CHAR(10),\"\")","v":""}]
[null,{"$f":"IFERROR(INDEX(Aktivitet,SMALL(IF(Mål=$B$2,ROW(Aktivitet)-MIN(ROW(Aktivitet))+1),ROWS($B$3:B90)))&\" \"&CHAR(10)&(INDEX(Resultat,SMALL(IF(Mål=$B$2,ROW(Resultat)-MIN(ROW(Resultat))+1),ROWS($B$3:B90))))&CHAR(10),\"\")","v":""},null,{"$f":"IFERROR(INDEX(Aktivitet,SMALL(IF(Mål=$D$2,ROW(Aktivitet)-MIN(ROW(Aktivitet))+1),ROWS($B$3:B90)))&CHAR(10),\"\")","v":""},null,{"$f":"IFERROR(INDEX(Aktivitet,SMALL(IF(Mål=$F$2,ROW(Aktivitet)-MIN(ROW(Aktivitet))+1),ROWS($B$3:B90)))&CHAR(10),\"\")","v":""},null,{"$f":"IFERROR(INDEX(Aktivitet,SMALL(IF(Mål=$H$2,ROW(Aktivitet)-MIN(ROW(Aktivitet))+1),ROWS($B$3:B90)))&CHAR(10),\"\")","v":""}]
[null,{"$f":"IFERROR(INDEX(Aktivitet,SMALL(IF(Mål=$B$2,ROW(Aktivitet)-MIN(ROW(Aktivitet))+1),ROWS($B$3:B91)))&\" \"&CHAR(10)&(INDEX(Resultat,SMALL(IF(Mål=$B$2,ROW(Resultat)-MIN(ROW(Resultat))+1),ROWS($B$3:B91))))&CHAR(10),\"\")","v":""},null,{"$f":"IFERROR(INDEX(Aktivitet,SMALL(IF(Mål=$D$2,ROW(Aktivitet)-MIN(ROW(Aktivitet))+1),ROWS($B$3:B91)))&CHAR(10),\"\")","v":""},null,{"$f":"IFERROR(INDEX(Aktivitet,SMALL(IF(Mål=$F$2,ROW(Aktivitet)-MIN(ROW(Aktivitet))+1),ROWS($B$3:B91)))&CHAR(10),\"\")","v":""},null,{"$f":"IFERROR(INDEX(Aktivitet,SMALL(IF(Mål=$H$2,ROW(Aktivitet)-MIN(ROW(Aktivitet))+1),ROWS($B$3:B91)))&CHAR(10),\"\")","v":""}]
[null,{"$f":"IFERROR(INDEX(Aktivitet,SMALL(IF(Mål=$B$2,ROW(Aktivitet)-MIN(ROW(Aktivitet))+1),ROWS($B$3:B92)))&\" \"&CHAR(10)&(INDEX(Resultat,SMALL(IF(Mål=$B$2,ROW(Resultat)-MIN(ROW(Resultat))+1),ROWS($B$3:B92))))&CHAR(10),\"\")","v":""},null,{"$f":"IFERROR(INDEX(Aktivitet,SMALL(IF(Mål=$D$2,ROW(Aktivitet)-MIN(ROW(Aktivitet))+1),ROWS($B$3:B92)))&CHAR(10),\"\")","v":""},null,{"$f":"IFERROR(INDEX(Aktivitet,SMALL(IF(Mål=$F$2,ROW(Aktivitet)-MIN(ROW(Aktivitet))+1),ROWS($B$3:B92)))&CHAR(10),\"\")","v":""},null,{"$f":"IFERROR(INDEX(Aktivitet,SMALL(IF(Mål=$H$2,ROW(Aktivitet)-MIN(ROW(Aktivitet))+1),ROWS($B$3:B92)))&CHAR(10),\"\")","v":""}]
[null,{"$f":"IFERROR(INDEX(Aktivitet,SMALL(IF(Mål=$B$2,ROW(Aktivitet)-MIN(ROW(Aktivitet))+1),ROWS($B$3:B93)))&\" \"&CHAR(10)&(INDEX(Resultat,SMALL(IF(Mål=$B$2,ROW(Resultat)-MIN(ROW(Resultat))+1),ROWS($B$3:B93))))&CHAR(10),\"\")","v":""},null,{"$f":"IFERROR(INDEX(Aktivitet,SMALL(IF(Mål=$D$2,ROW(Aktivitet)-MIN(ROW(Aktivitet))+1),ROWS($B$3:B93)))&CHAR(10),\"\")","v":""},null,{"$f":"IFERROR(INDEX(Aktivitet,SMALL(IF(Mål=$F$2,ROW(Aktivitet)-MIN(ROW(Aktivitet))+1),ROWS($B$3:B93)))&CHAR(10),\"\")","v":""},null,{"$f":"IFERROR(INDEX(Aktivitet,SMALL(IF(Mål=$H$2,ROW(Aktivitet)-MIN(ROW(Aktivitet))+1),ROWS($B$3:B93)))&CHAR(10),\"\")","v":""}]
[null,{"$f":"IFERROR(INDEX(Aktivitet,SMALL(IF(Mål=$B$2,ROW(Aktivitet)-MIN(ROW(Aktivitet))+1),ROWS($B$3:B94)))&\" \"&CHAR(10)&(INDEX(Resultat,SMALL(IF(Mål=$B$2,ROW(Resultat)-MIN(ROW(Resultat))+1),ROWS($B$3:B94))))&CHAR(10),\"\")","v":""},null,{"$f":"IFERROR(INDEX(Aktivitet,SMALL(IF(Mål=$D$2,ROW(Aktivitet)-MIN(ROW(Aktivitet))+1),ROWS($B$3:B94)))&CHAR(10),\"\")","v":""},null,{"$f":"IFERROR(INDEX(Aktivitet,SMALL(IF(Mål=$F$2,ROW(Aktivitet)-MIN(ROW(Aktivitet))+1),ROWS($B$3:B94)))&CHAR(10),\"\")","v":""},null,{"$f":"IFERROR(INDEX(Aktivitet,SMALL(IF(Mål=$H$2,ROW(Aktivitet)-MIN(ROW(Aktivitet))+1),ROWS($B$3:B94)))&CHAR(10),\"\")","v":""}]
[null,{"$f":"IFERROR(INDEX(Aktivitet,SMALL(IF(Mål=$B$2,ROW(Aktivitet)-MIN(ROW(Aktivitet))+1),ROWS($B$3:B95)))&\" \"&CHAR(10)&(INDEX(Resultat,SMALL(IF(Mål=$B$2,ROW(Resultat)-MIN(ROW(Resultat))+1),ROWS($B$3:B95))))&CHAR(10),\"\")","v":""},null,{"$f":"IFERROR(INDEX(Aktivitet,SMALL(IF(Mål=$D$2,ROW(Aktivitet)-MIN(ROW(Aktivitet))+1),ROWS($B$3:B95)))&CHAR(10),\"\")","v":""},null,{"$f":"IFERROR(INDEX(Aktivitet,SMALL(IF(Mål=$F$2,ROW(Aktivitet)-MIN(ROW(Aktivitet))+1),ROWS($B$3:B95)))&CHAR(10),\"\")","v":""},null,{"$f":"IFERROR(INDEX(Aktivitet,SMALL(IF(Mål=$H$2,ROW(Aktivitet)-MIN(ROW(Aktivitet))+1),ROWS($B$3:B95)))&CHAR(10),\"\")","v":""}]
[null,{"$f":"IFERROR(INDEX(Aktivitet,SMALL(IF(Mål=$B$2,ROW(Aktivitet)-MIN(ROW(Aktivitet))+1),ROWS($B$3:B96)))&\" \"&CHAR(10)&(INDEX(Resultat,SMALL(IF(Mål=$B$2,ROW(Resultat)-MIN(ROW(Resultat))+1),ROWS($B$3:B96))))&CHAR(10),\"\")","v":""},null,{"$f":"IFERROR(INDEX(Aktivitet,SMALL(IF(Mål=$D$2,ROW(Aktivitet)-MIN(ROW(Aktivitet))+1),ROWS($B$3:B96)))&CHAR(10),\"\")","v":""},null,{"$f":"IFERROR(INDEX(Aktivitet,SMALL(IF(Mål=$F$2,ROW(Aktivitet)-MIN(ROW(Aktivitet))+1),ROWS($B$3:B96)))&CHAR(10),\"\")","v":""},null,{"$f":"IFERROR(INDEX(Aktivitet,SMALL(IF(Mål=$H$2,ROW(Aktivitet)-MIN(ROW(Aktivitet))+1),ROWS($B$3:B96)))&CHAR(10),\"\")","v":""}]
[null,{"$f":"IFERROR(INDEX(Aktivitet,SMALL(IF(Mål=$B$2,ROW(Aktivitet)-MIN(ROW(Aktivitet))+1),ROWS($B$3:B97)))&\" \"&CHAR(10)&(INDEX(Resultat,SMALL(IF(Mål=$B$2,ROW(Resultat)-MIN(ROW(Resultat))+1),ROWS($B$3:B97))))&CHAR(10),\"\")","v":""},null,{"$f":"IFERROR(INDEX(Aktivitet,SMALL(IF(Mål=$D$2,ROW(Aktivitet)-MIN(ROW(Aktivitet))+1),ROWS($B$3:B97)))&CHAR(10),\"\")","v":""},null,{"$f":"IFERROR(INDEX(Aktivitet,SMALL(IF(Mål=$F$2,ROW(Aktivitet)-MIN(ROW(Aktivitet))+1),ROWS($B$3:B97)))&CHAR(10),\"\")","v":""},null,{"$f":"IFERROR(INDEX(Aktivitet,SMALL(IF(Mål=$H$2,ROW(Aktivitet)-MIN(ROW(Aktivitet))+1),ROWS($B$3:B97)))&CHAR(10),\"\")","v":""}]
[null,{"$f":"IFERROR(INDEX(Aktivitet,SMALL(IF(Mål=$B$2,ROW(Aktivitet)-MIN(ROW(Aktivitet))+1),ROWS($B$3:B98)))&\" \"&CHAR(10)&(INDEX(Resultat,SMALL(IF(Mål=$B$2,ROW(Resultat)-MIN(ROW(Resultat))+1),ROWS($B$3:B98))))&CHAR(10),\"\")","v":""},null,{"$f":"IFERROR(INDEX(Aktivitet,SMALL(IF(Mål=$D$2,ROW(Aktivitet)-MIN(ROW(Aktivitet))+1),ROWS($B$3:B98)))&CHAR(10),\"\")","v":""},null,{"$f":"IFERROR(INDEX(Aktivitet,SMALL(IF(Mål=$F$2,ROW(Aktivitet)-MIN(ROW(Aktivitet))+1),ROWS($B$3:B98)))&CHAR(10),\"\")","v":""},null,{"$f":"IFERROR(INDEX(Aktivitet,SMALL(IF(Mål=$H$2,ROW(Aktivitet)-MIN(ROW(Aktivitet))+1),ROWS($B$3:B98)))&CHAR(10),\"\")","v":""}]
[null,{"$f":"IFERROR(INDEX(Aktivitet,SMALL(IF(Mål=$B$2,ROW(Aktivitet)-MIN(ROW(Aktivitet))+1),ROWS($B$3:B99)))&\" \"&CHAR(10)&(INDEX(Resultat,SMALL(IF(Mål=$B$2,ROW(Resultat)-MIN(ROW(Resultat))+1),ROWS($B$3:B99))))&CHAR(10),\"\")","v":""},null,{"$f":"IFERROR(INDEX(Aktivitet,SMALL(IF(Mål=$D$2,ROW(Aktivitet)-MIN(ROW(Aktivitet))+1),ROWS($B$3:B99)))&CHAR(10),\"\")","v":""},null,{"$f":"IFERROR(INDEX(Aktivitet,SMALL(IF(Mål=$F$2,ROW(Aktivitet)-MIN(ROW(Aktivitet))+1),ROWS($B$3:B99)))&CHAR(10),\"\")","v":""},null,{"$f":"IFERROR(INDEX(Aktivitet,SMALL(IF(Mål=$H$2,ROW(Aktivitet)-MIN(ROW(Aktivitet))+1),ROWS($B$3:B99)))&CHAR(10),\"\")","v":""}]
[null,{"$f":"IFERROR(INDEX(Aktivitet,SMALL(IF(Mål=$B$2,ROW(Aktivitet)-MIN(ROW(Aktivitet))+1),ROWS($B$3:B100)))&\" \"&CHAR(10)&(INDEX(Resultat,SMALL(IF(Mål=$B$2,ROW(Resultat)-MIN(ROW(Resultat))+1),ROWS($B$3:B100))))&CHAR(10),\"\")","v":""},null,{"$f":"IFERROR(INDEX(Aktivitet,SMALL(IF(Mål=$D$2,ROW(Aktivitet)-MIN(ROW(Aktivitet))+1),ROWS($B$3:B100)))&CHAR(10),\"\")","v":""},null,{"$f":"IFERROR(INDEX(Aktivitet,SMALL(IF(Mål=$F$2,ROW(Aktivitet)-MIN(ROW(Aktivitet))+1),ROWS($B$3:B100)))&CHAR(10),\"\")","v":""},null,{"$f":"IFERROR(INDEX(Aktivitet,SMALL(IF(Mål=$H$2,ROW(Aktivitet)-MIN(ROW(Aktivitet))+1),ROWS($B$3:B100)))&CHAR(10),\"\")","v":""}]

{"sheet":"Om","index":2,"n_rows":6,"n_cols":1,"rows_kept":6}
["Om denne arbeidsboken"]
["Veiledning for skjermlesere"]
["Det finnes tre regneark i denne arbeidsboken. \n\nVeikartdata\nAgile-veikart\nOm\n\nInstruksjonene for hvert regneark finner du i kolonne A, celle A1 i hvert regneark. De er skrevet med skjult tekst. Hvert trinn veileder deg gjennom informasjonen i den raden. Hvert etterfølgende trinn fortsetter i celle A2 og A3 og så videre, med mindre annet er uttrykkelig angitt. Instruksjonsteksten kan for eksempel si «fortsett til celle A6» for det neste trinnet. \n\nSkjult tekst skrives ikke ut.\n\nHvis du vil fjerne instruksjonene fra regnearkene, sletter du helt enkelt kolonne A.\n"]
["Om denne arbeidsboken"]
["Angi milepælinformasjon i Veikartdata-regnearket.  Kontroller at du sorterer prioritet etterfulgt av milepæl for å oppfange Fullført-, Gjeldende-, Nær fremtid- og Fremtid-visningen i synkende rekkefølge – med høyest prioritet oppført helt øverst. Veikartet i regnearket Agile-veikart oppdateres automatisk.\n"]
["Dette er den siste instruksjonen i dette regnearket."]